Workbook

Sheet IMAGE
C2: Consumer Price Index Total Population (Jun 2019=100)
C3: CPI | D3: Year
C4: Total Population | E4: 2014 | F4: 2015 | G4: 2016 | H4: 2017 | I4: 2018 | J4: 2019 | K4: 2020 | L4: 2021 | M4: 2022 | N4: 2023 | O4: 2024
C5: Month
C6: January | E6: 92.327 | F6: 93.281 | G6: 92.786 | H6: 91.898 | I6: 92.877 | J6: 96.254 | K6: 99.572 | L6: 96.887 | M6: 100.068 | N6: 106.692 | O6: 108.314
C7: February | E7: 92.551 | F7: 93.172 | G7: 92.597 | H7: 91.929 | I7: 93.88 | J7: 96.66 | K7: 98.903 | L7: 96.995 | M7: 100.436 | N7: 107.59 | O7: 108.5718757
C8: March | E8: 92.773 | F8: 93.993 | G8: 92.302 | H8: 91.766 | I8: 94.714 | J8: 98.003 | K8: 98.675 | L8: 97.595 | M8: 101.469 | N8: 107.468 | O8: 109.3711158
C9: April | E9: 92.824 | F9: 93.853 | G9: 92.322 | H9: 91.925 | I9: 94.537 | J9: 98.833 | K9: 97.928 | L9: 97.573 | M9: 102.157 | N9: 107.119
C10: May | E10: 93.116 | F10: 94.157 | G10: 92.665 | H10: 92.106 | I10: 94.9 | J10: 99.19 | K10: 97.635 | L10: 97.394 | M10: 102.489 | N10: 106.601
C11: June | E11: 93.187 | F11: 93.82 | G11: 93.037 | H11: 91.919 | I11: 95.387 | J11: 100 | K11: 97.136 | L11: 98.088 | M11: 103.258 | N11: 106.197
C12: July | E12: 93.607 | F12: 94.412 | G12: 93.339 | H12: 91.632 | I12: 96.491 | J12: 99.998 | K12: 96.83 | L12: 98.531 | M12: 104.459 | N12: 106.204
C13: August | E13: 93.488 | F13: 94.134 | G13: 92.822 | H13: 91.678 | I13: 95.956 | J13: 99.933 | K13: 97.45 | L13: 98.841 | M13: 106.458 | N13: 106.939
C14: September | E14: 93.335 | F14: 93.595 | G14: 92.963 | H14: 91.451 | I14: 95.774 | J14: 99.449 | K14: 97.142 | L14: 99.236 | M14: 106.202 | N14: 107.999
C15: October | E15: 94.047 | F15: 93.258 | G15: 93.169 | H15: 92.05 | I15: 95.664 | J15: 99.803 | K15: 96.972 | L15: 99.305 | M15: 106.298 | N15: 108.143
C16: November | E16: 93.507 | F16: 93.283 | G16: 93.307 | H16: 91.922 | I16: 95.965 | J16: 99.576 | K16: 96.928 | L16: 99.903 | M16: 106.487 | N16: 108.339
C17: December | E17: 94.681 | F17: 93.804 | G17: 92.978 | H17: 92.548 | I17: 96.672 | J17: 100.133 | K17: 97.062 | L17: 100.603 | M17: 106.372 | N17: 108.786
C18: Source: Central Bureau of Statistics
C20: Please note: CPI for the period Jun 2019 - Sep 2020 were revised and corrected

Sheet 1980-2024
B2: Consumer Price Index Total Population (Jun 2019=100)
B3: CPI | C3: Year
B4: Total Population | D4: 2014 | E4: 2015 | F4: 2016 | G4: 2017 | H4: 2018 | I4: 2019 | J4: 2020 | K4: 2021 | L4: 2022 | M4: 2023 | N4: 2024
B5: Month
B6: January | D6: 92.327 | E6: 93.281 | F6: 92.786 | G6: 91.898 | H6: 92.877 | I6: 96.254 | J6: 99.572 | K6: 96.887 | L6: 100.068 | M6: 106.692 | N6: 108.314
B7: February | D7: 92.551 | E7: 93.172 | F7: 92.597 | G7: 91.929 | H7: 93.88 | I7: 96.66 | J7: 98.903 | K7: 96.995 | L7: 100.436 | M7: 107.59 | N7: 108.5718757
B8: March | D8: 92.773 | E8: 93.993 | F8: 92.302 | G8: 91.766 | H8: 94.714 | I8: 98.003 | J8: 98.675 | K8: 97.595 | L8: 101.469 | M8: 107.468 | N8: 109.3711158
B9: April | D9: 92.824 | E9: 93.853 | F9: 92.322 | G9: 91.925 | H9: 94.537 | I9: 98.833 | J9: 97.928 | K9: 97.573 | L9: 102.157 | M9: 107.119
B10: May | D10: 93.116 | E10: 94.157 | F10: 92.665 | G10: 92.106 | H10: 94.9 | I10: 99.19 | J10: 97.635 | K10: 97.394 | L10: 102.489 | M10: 106.601
B11: June | D11: 93.187 | E11: 93.82 | F11: 93.037 | G11: 91.919 | H11: 95.387 | I11: 100 | J11: 97.136 | K11: 98.088 | L11: 103.258 | M11: 106.197
B12: July | D12: 93.607 | E12: 94.412 | F12: 93.339 | G12: 91.632 | H12: 96.491 | I12: 99.998 | J12: 96.83 | K12: 98.531 | L12: 104.459 | M12: 106.204
B13: August | D13: 93.488 | E13: 94.134 | F13: 92.822 | G13: 91.678 | H13: 95.956 | I13: 99.933 | J13: 97.45 | K13: 98.841 | L13: 106.458 | M13: 106.939
B14: September | D14: 93.335 | E14: 93.595 | F14: 92.963 | G14: 91.451 | H14: 95.774 | I14: 99.449 | J14: 97.142 | K14: 99.236 | L14: 106.202 | M14: 107.999
B15: October | D15: 94.047 | E15: 93.258 | F15: 93.169 | G15: 92.05 | H15: 95.664 | I15: 99.803 | J15: 96.972 | K15: 99.305 | L15: 106.298 | M15: 108.143
B16: November | D16: 93.507 | E16: 93.283 | F16: 93.307 | G16: 91.922 | H16: 95.965 | I16: 99.576 | J16: 96.928 | K16: 99.903 | L16: 106.487 | M16: 108.339
B17: December | D17: 94.681 | E17: 93.804 | F17: 92.978 | G17: 92.548 | H17: 96.672 | I17: 100.133 | J17: 97.062 | K17: 100.603 | L17: 106.372 | M17: 108.786
B18: Source: Central Bureau of Statistics
B20: Please note: CPI for the period Jun 2019 - Sep 2020 were revised and corrected

Sheet CPI for graph
B2: YEAR | C2: MONTH | D2: DATE | E2: CPI TOTAL | F2: END OF PERIOD | G2: PERIOD AVG | H2: CPI TOTAL ROUNDED
B3: 2013 | C3: 01-JAN | D3: 2013-01-01 | E3: 92.51461721 | F3: -3.493760156 | G3: -0.1569201851 | H3: =ROUND(E3,3) -> 92.515
B4: 2013 | C4: 02-FEB | D4: 2013-02-01 | E4: 93.17710225 | F4: -3.183725451 | G4: -0.8675924507 | H4: 93.177
B5: 2013 | C5: 03-MAR | D5: 2013-03-01 | E5: 93.12995672 | F5: -3.459317934 | G5: -1.560787135 | H5: 93.13
B6: 2013 | C6: 04-APR | D6: 2013-04-01 | E6: 93.17270645 | F6: -3.500496944 | G6: -2.062964049 | H6: 93.173
B7: 2013 | C7: 05-MAY | D7: 2013-05-01 | E7: 92.82196296 | F7: -3.812486149 | G7: -2.497544991 | H7: 92.822
B8: 2013 | C8: 06-JUN | D8: 2013-06-01 | E8: 93.03899868 | F8: -3.101160618 | G8: -2.83154703 | H8: 93.039
B9: 2013 | C9: 07-JUL | D9: 2013-07-01 | E9: 92.96991645 | F9: -2.775083454 | G9: -3.090014277 | H9: 92.97
B10: 2013 | C10: 08-AUG | D10: 2013-08-01 | E10: 93.0856249 | F10: -1.131287296 | G10: -2.955968889 | H10: 93.086
B11: 2013 | C11: 09-SEPT | D11: 2013-09-01 | E11: 93.11771516 | F11: -1.536471276 | G11: -2.912722785 | H11: 93.118
B12: 2013 | C12: 10-OCT | D12: 2013-10-01 | E12: 92.68810322 | F12: -1.898794819 | G12: -2.935618132 | H12: 92.688
B13: 2013 | C13: 11-NOV | D13: 2013-11-01 | E13: 92.38822867 | F13: -0.4409423866 | G13: -2.683246692 | H13: 92.388
B14: 2013 | C14: 12-DEC | D14: 2013-12-01 | E14: 92.64204788 | F14: 0.08030485992 | G14: -2.372289063 | H14: 92.642
B15: 2014 | C15: 01-JAN | D15: 2014-01-01 | E15: 92.32803146 | F15: -0.2016824622 | G15: -2.101471876 | H15: 92.328
B16: 2014 | C16: 02-FEB | D16: 2014-02-01 | E16: 92.55128798 | F16: -0.6716395537 | G16: -1.892399728 | H16: 92.551
B17: 2014 | C17: 03-MAR | D17: 2014-03-01 | E17: 92.77367281 | F17: -0.3825663875 | G17: -1.634674456 | H17: 92.774
B18: 2014 | C18: 04-APR | D18: 2014-04-01 | E18: 92.82417731 | F18: -0.374067858 | G18: -1.371005768 | H18: 92.824
B19: 2014 | C19: 05-MAY | D19: 2014-05-01 | E19: 93.1159506 | F19: 0.3167220665 | G19: -1.022334815 | H19: 93.116
B20: 2014 | C20: 06-JUN | D20: 2014-06-01 | E20: 93.18758591 | F20: 0.1597042409 | G20: -0.7464306903 | H20: 93.188
B21: 2014 | C21: 07-JUL | D21: 2014-07-01 | E21: 93.6069851 | F21: 0.6852417217 | G21: -0.4542284469 | H21: 93.607
B22: 2014 | C22: 08-AUG | D22: 2014-08-01 | E22: 93.48748839 | F22: 0.4317138033 | G22: -0.3234850855 | H22: 93.487
B23: 2014 | C23: 09-SEPT | D23: 2014-09-01 | E23: 93.33499706 | F23: 0.2333410913 | G23: -0.1743517535 | H23: 93.335
B24: 2014 | C24: 10-OCT | D24: 2014-10-01 | E24: 94.04724775 | F24: 1.466363517 | G24: 0.1081421619 | H24: 94.047
B25: 2014 | C25: 11-NOV | D25: 2014-11-01 | E25: 93.50783274 | F25: 1.211847094 | G25: 0.2453330847 | H25: 93.508
B26: 2014 | C26: 12-DEC | D26: 2014-12-01 | E26: 94.68124418 | F26: 2.201156328 | G26: 0.4215773437 | H26: 94.681
B27: 2015 | C27: 01-JAN | D27: 2015-01-01 | E27: 93.28137272 | F27: 1.032558859 | G27: 0.5239238504 | H27: 93.281
B28: 2015 | C28: 02-FEB | D28: 2015-02-01 | E28: 93.17206326 | F28: 0.6707365061 | G28: 0.6361268793 | H28: 93.172
B29: 2015 | C29: 03-MAR | D29: 2015-03-01 | E29: 93.9936081 | F29: 1.314958488 | G29: 0.7778758357 | H29: 93.994
B30: 2015 | C30: 04-APR | D30: 2015-04-01 | E30: 93.85364856 | F30: 1.109055075 | G30: 0.901903378 | H30: 93.854
B31: 2015 | C31: 05-MAY | D31: 2015-05-01 | E31: 94.15794693 | F31: 1.119030976 | G31: 0.9688401815 | H31: 94.158
B32: 2015 | C32: 06-JUN | D32: 2015-06-01 | E32: 93.82046863 | F32: 0.6791491752 | G32: 1.012197272 | H32: 93.82
B33: 2015 | C33: 07-JUL | D33: 2015-07-01 | E33: 94.41200003 | F33: 0.8599944996 | G33: 1.026690362 | H33: 94.412
B34: 2015 | C34: 08-AUG | D34: 2015-08-01 | E34: 94.13478201 | F34: 0.6923852904 | G34: 1.048337603 | H34: 94.135
B35: 2015 | C35: 09-SEPT | D35: 2015-09-01 | E35: 93.59507516 | F35: 0.2786501419 | G35: 1.05197177 | H35: =ROUND(E35,3) -> 93.595
B36: 2015 | C36: 10-OCT | D36: 2015-10-01 | E36: 93.25836638 | F36: -0.838813874 | G36: 0.8582651019 | H36: 93.258
B37: 2015 | C37: 11-NOV | D37: 2015-11-01 | E37: 93.28316861 | F37: -0.2402623639 | G37: 0.7371027148 | H37: 93.283
B38: 2015 | C38: 12-DEC | D38: 2015-12-01 | E38: 93.80420854 | F38: -0.9263034622 | G38: 0.4752534071 | H38: 93.804
B39: 2016 | C39: 01-JAN | D39: 2016-01-01 | E39: 92.78641705 | F39: -0.5306050452 | G39: 0.3455829386 | H39: 92.786
B40: 2016 | C40: 02-FEB | D40: 2016-02-01 | E40: 92.59692829 | F40: -0.6172826352 | G40: 0.238711083 | H40: 92.597
B41: 2016 | C41: 03-MAR | D41: 2016-03-01 | E41: 92.30243249 | F41: -1.799245332 | G41: -0.02095009251 | H41: 92.302
B42: 2016 | C42: 04-APR | D42: 2016-04-01 | E42: 92.32150177 | F42: -1.632485057 | G42: -0.2489809584 | H42: 92.322
B43: 2016 | C43: 05-MAY | D43: 2016-05-01 | E43: 92.66472346 | F43: -1.585870881 | G43: -0.4742409729 | H43: 92.665
B44: 2016 | C44: 06-JUN | D44: 2016-06-01 | E44: 93.03697626 | F44: -0.8350974776 | G44: -0.5998803437 | H44: 93.037
B45: 2016 | C45: 07-JUL | D45: 2016-07-01 | E45: 93.33867477 | F45: -1.136852576 | G45: -0.7663037225 | H45: 93.339
B46: 2016 | C46: 08-AUG | D46: 2016-08-01 | E46: 92.82202744 | F46: -1.394547844 | G46: -0.9398737505 | H46: 92.822
B47: 2016 | C47: 09-SEPT | D47: 2016-09-01 | E47: 92.9629709 | F47: -0.6753606032 | G47: -1.018845233 | H47: 92.963
B48: 2016 | C48: 10-OCT | D48: 2016-10-01 | E48: 93.16939623 | F48: -0.09540178836 | G48: -0.9573927815 | H48: 93.169
B49: 2016 | C49: 11-NOV | D49: 2016-11-01 | E49: 93.30684851 | F49: 0.02538496635 | G49: -0.9355214645 | H49: 93.307
B50: 2016 | C50: 12-DEC | D50: 2016-12-01 | E50: 92.97798904 | F50: -0.8807915079 | G50: -0.9317330092 | H50: 92.978
B51: 2017 | C51: 01-JAN | D51: 2017-01-01 | E51: 91.89901407 | F51: -0.9563931986 | G51: -0.9670500023 | H51: 91.899
B52: 2017 | C52: 02-FEB | D52: 2017-02-01 | E52: 91.92939588 | F52: -0.7209012414 | G52: -0.9757675938 | H52: 91.929
B53: 2017 | C53: 03-MAR | D53: 2017-03-01 | E53: 91.76585312 | F53: -0.5813274471 | G53: -0.8743336573 | H53: 91.766
B54: 2017 | C54: 04-APR | D54: 2017-04-01 | E54: 91.92548448 | F54: -0.4289545581 | G54: -0.7741319455 | H54: 91.925
B55: 2017 | C55: 05-MAY | D55: 2017-05-01 | E55: 92.10623604 | F55: -0.6026969112 | G55: -0.6916303407 | H55: 92.106
B56: 2017 | C56: 06-JUN | D56: 2017-06-01 | E56: 91.9196978 | F56: -1.200897218 | G56: -0.7219653435 | H56: 91.92
B57: 2017 | C57: 07-JUL | D57: 2017-07-01 | E57: 91.63284821 | F57: -1.827566725 | G57: -0.779277761 | H57: 91.633
B58: 2017 | C58: 08-AUG | D58: 2017-08-01 | E58: 91.67819759 | F58: -1.232282768 | G58: -0.7650553891 | H58: 91.678
B59: 2017 | C59: 09-SEPT | D59: 2017-09-01 | E59: 91.45140373 | F59: -1.625988447 | G59: -0.8443520159 | H59: 91.451
B60: 2017 | C60: 10-OCT | D60: 2017-10-01 | E60: 92.05008746 | F60: -1.201369572 | G60: -0.9368190257 | H60: 92.05
B61: 2017 | C61: 11-NOV | D61: 2017-11-01 | E61: 91.92270363 | F61: -1.483433314 | G61: -1.063048637 | H61: 91.923
B62: 2017 | C62: 12-DEC | D62: 2017-12-01 | E62: 92.54759646 | F62: -0.4628972776 | G62: -1.028313973 | H62: 92.548
B63: 2018 | C63: 01-JAN | D63: 2018-01-01 | E63: 92.87729784 | F63: 1.064520418 | G63: -0.8615668627 | H63: 92.877
B64: 2018 | C64: 02-FEB | D64: 2018-02-01 | E64: 93.88041688 | F64: 2.12230373 | G64: -0.6267571978 | H64: 93.88
B65: 2018 | C65: 03-MAR | D65: 2018-03-01 | E65: 94.71392446 | F65: 3.212601681 | G65: -0.3137467544 | H65: 94.714
B66: 2018 | C66: 04-APR | D66: 2018-04-01 | E66: 94.5366851 | F66: 2.840562259 | G66: -0.04337643926 | H66: 94.537
B67: 2018 | C67: 05-MAY | D67: 2018-05-01 | E67: 94.89954777 | F67: 3.032706418 | G67: 0.2582284609 | H67: =ROUND(E67,3) -> 94.9
B68: 2018 | C68: 06-JUN | D68: 2018-06-01 | E68: 95.38671017 | F68: 3.771783906 | G68: 0.6714415488 | H68: 95.387
B69: 2018 | C69: 07-JUL | D69: 2018-07-01 | E69: 96.49149566 | F69: 5.302298846 | G69: 1.264713136 | H69: 96.491
B70: 2018 | C70: 08-AUG | D70: 2018-08-01 | E70: 95.95608657 | F70: 4.666201014 | G70: 1.75566527 | H70: 95.956
B71: 2018 | C71: 09-SEPT | D71: 2018-09-01 | E71: 95.77353136 | F71: 4.72614685 | G71: 2.285637446 | H71: 95.774
B72: 2018 | C72: 10-OCT | D72: 2018-10-01 | E72: 95.66399768 | F72: 3.926025839 | G72: 2.71643745 | H72: 95.664
B73: 2018 | C73: 11-NOV | D73: 2018-11-01 | E73: 95.96509796 | F73: 4.397601646 | G73: 3.211710009 | H73: 95.965
B74: 2018 | C74: 12-DEC | D74: 2018-12-01 | E74: 96.67155734 | F74: 4.456043206 | G74: 3.625933648 | H74: 96.672
B75: 2019 | C75: 01-JAN | D75: 2019-01-01 | E75: 96.25402063 | F75: 3.63568156 | G75: 3.840007986 | H75: 96.254
B76: 2019 | C76: 02-FEB | D76: 2019-02-01 | E76: 96.65959803 | F76: 2.960341723 | G76: 3.908127856 | H76: 96.66
B77: 2019 | C77: 03-MAR | D77: 2019-03-01 | E77: 98.00291754 | F77: 3.472554957 | G77: 3.928485585 | H77: 98.003
B78: 2019 | C78: 04-APR | D78: 2019-04-01 | E78: 98.83284701 | F78: 4.544438917 | G78: 4.070873446 | H78: 98.833
B79: 2019 | C79: 05-MAY | D79: 2019-05-01 | E79: 99.19004289 | F79: 4.521091217 | G79: 4.195050655 | H79: 99.19
B80: 2019 | C80: 06-JUN | D80: 2019-06-01 | E80: 100 | F80: 4.83640732 | G80: 4.284604588 | H80: 100
B81: 2019 | C81: 07-JUL | D81: 2019-07-01 | E81: 99.99805262 | F81: 3.634058039 | G81: 4.145597622 | H81: 99.998
B82: 2019 | C82: 08-AUG | D82: 2019-08-01 | E82: 99.93266581 | F82: 4.144165711 | G82: 4.103115339 | H82: 99.933
B83: 2019 | C83: 09-SEPT | D83: 2019-09-01 | E83: 99.44946792 | F83: 3.838154971 | G83: 4.030303076 | H83: 99.449
B84: 2019 | C84: 10-OCT | D84: 2019-10-01 | E84: 99.80258135 | F84: 4.326166344 | G84: 4.063707379 | H84: 99.803
B85: 2019 | C85: 11-NOV | D85: 2019-11-01 | E85: 99.57575999 | F85: 3.762474178 | G85: 4.011366344 | H85: 99.576
B86: 2019 | C86: 12-DEC | D86: 2019-12-01 | E86: 100.133489 | F86: 3.581127424 | G86: 3.938961324 | H86: 100.133
B87: 2020 | C87: 01-JAN | D87: 2020-01-01 | E87: 99.57229332 | F87: 3.447412033 | G87: 3.922257514 | H87: 99.572
B88: 2020 | C88: 02-FEB | D88: 2020-02-01 | E88: 98.90341322 | F88: 2.321357873 | G88: 3.866174993 | H88: 98.903
B89: 2020 | C89: 03-MAR | D89: 2020-03-01 | E89: 98.6748196 | F89: 0.6855939434 | G89: 3.628012923 | H89: 98.675
B90: 2020 | C90: 04-APR | D90: 2020-04-01 | E90: 97.92807212 | F90: -0.9154597015 | G90: 3.164845071 | H90: 97.928
B91: 2020 | C91: 05-MAY | D91: 2020-05-01 | E91: 97.63471179 | F91: -1.568031479 | G91: 2.649565358 | H91: 97.635
B92: 2020 | C92: 06-JUN | D92: 2020-06-01 | E92: 97.13637077 | F92: -2.863629232 | G92: 1.997535823 | H92: 97.136
B93: 2020 | C93: 07-JUL | D93: 2020-07-01 | E93: 96.8295882 | F93: -3.168526119 | G93: 1.420525371 | H93: 96.83
B94: 2020 | C94: 08-AUG | D94: 2020-08-01 | E94: 97.44987556 | F94: -2.484463144 | G94: 0.8650124069 | H94: 97.45
B95: 2020 | C95: 09-SEPT | D95: 2020-09-01 | E95: 97.14177479 | F95: -2.320468047 | G95: 0.3537661565 | H95: 97.142
B96: 2020 | C96: 10-OCT | D96: 2020-10-01 | E96: 96.97168778 | F96: -2.836493336 | G96: -0.2377278774 | H96: 96.972
B97: 2020 | C97: 11-NOV | D97: 2020-11-01 | E97: 96.92841461 | F97: -2.658624332 | G97: -0.7653861636 | H97: 96.928
B98: 2020 | C98: 12-DEC | D98: 2020-12-01 | E98: 97.06181384 | F98: -3.067580271 | G98: -1.313200392 | H98: 97.062
B99: 2021 | C99: 01-JAN | D99: 2021-01-01 | E99: 96.88676985 | F99: -2.697058967 | G99: -1.813575829 | H99: =ROUND(E99,3) -> 96.887
B100: 2021 | C100: 02-FEB | D100: 2021-02-01 | E100: 96.99549097 | F100: -1.929076242 | G100: -2.158059357 | H100: 96.995
B101: 2021 | C101: 03-MAR | D101: 2021-03-01 | E101: 97.59483974 | F101: -1.094483745 | G101: -2.303560754 | H101: 97.595
B102: 2021 | C102: 04-APR | D102: 2021-04-01 | E102: 97.57336089 | F102: -0.3622160818 | G102: -2.259206155 | H102: 97.573
B103: 2021 | C103: 05-MAY | D103: 2021-05-01 | E103: 97.39410382 | F103: -0.246436916 | G103: -2.151822867 | H103: 97.394
B104: 2021 | C104: 06-JUN | D104: 2021-06-01 | E104: 98.08822067 | F104: 0.9799109215 | G104: -1.836038629 | H104: 98.088
B105: 2021 | C105: 07-JUL | D105: 2021-07-01 | E105: 98.53139459 | F105: 1.757527232 | G105: -1.430150875 | H105: 98.531
B106: 2021 | C106: 08-AUG | D106: 2021-08-01 | E106: 98.84053579 | F106: 1.427051827 | G106: -1.105751092 | H106: 98.841
B107: 2021 | C107: 09-SEPT | D107: 2021-09-01 | E107: 99.23641874 | F107: 2.156275148 | G107: -0.7350800488 | H107: 99.236
B108: 2021 | C108: 10-OCT | D108: 2021-10-01 | E108: 99.30514611 | F108: 2.4063295 | G108: -0.2984287087 | H108: 99.305
B109: 2021 | C109: 11-NOV | D109: 2021-11-01 | E109: 99.90307485 | F109: 3.068924894 | G109: 0.1792436851 | H109: 99.903
B110: 2021 | C110: 12-DEC | D110: 2021-12-01 | E110: 100.6025337 | F110: 3.647901964 | G110: 0.7437988271 | H110: 100.603
B111: 2022 | C111: 01-JAN | D111: 2022-01-01 | E111: 100.0676748 | F111: 3.283115915 | G111: 1.247104957 | H111: 100.068
B112: 2022 | C112: 02-FEB | D112: 2022-02-01 | E112: 100.4359553 | F112: 3.547035306 | G112: 1.707193954 | H112: 100.436
B113: 2022 | C113: 03-MAR | D113: 2022-03-01 | E113: 101.4693988 | F113: 3.970045045 | G113: 2.133488257 | H113: 101.469
B114: 2022 | C114: 04-APR | D114: 2022-04-01 | E114: 102.1573903 | F114: 4.698033693 | G114: 2.557625488 | H114: 102.157
B115: 2022 | C115: 05-MAY | D115: 2022-05-01 | E115: 102.488957 | F115: 5.231172047 | G115: 3.015754088 | H115: 102.489
B116: 2022 | C116: 06-JUN | D116: 2022-06-01 | E116: 103.2575538 | F116: 5.270085516 | G116: 3.374715484 | H116: 103.258
B117: 2022 | C117: 07-JUL | D117: 2022-07-01 | E117: 104.4589884 | F117: 6.015944299 | G117: 3.731406653 | H117: 104.459
B118: 2022 | C118: 08-AUG | D118: 2022-08-01 | E118: 106.4328143 | F118: 7.681340904 | G118: 4.257020576 | H118: 106.433
B119: 2022 | C119: 09-SEPT | D119: 2022-09-01 | E119: 106.2017668 | F119: 7.018943352 | G119: 4.664965478 | H119: 106.202
B120: 2022 | C120: 10-OCT | D120: 2022-10-01 | E120: 106.2975509 | F120: 7.041331781 | G120: 5.052393102 | H120: 106.298
B121: 2022 | C121: 11-NOV | D121: 2022-11-01 | E121: 106.4874282 | F121: 6.590741434 | G121: 5.346207332 | H121: 106.487
B122: 2022 | C122: 12-DEC | D122: 2022-12-01 | E122: 106.371503 | F122: 5.734417574 | G122: 5.51886088 | H122: 106.372
B123: 2023 | C123: 01-JAN | D123: 2023-01-01 | E123: 106.6921786 | F123: 6.620023674 | G123: 5.794847585 | H123: 106.692
B124: 2023 | C124: 02-FEB | D124: 2023-02-01 | E124: 107.5899356 | F124: 7.122927523 | G124: 6.090757442 | H124: 107.59
B125: 2023 | C125: 03-MAR | D125: 2023-03-01 | E125: 107.4683568 | F125: 5.912085884 | G125: 6.24925443 | H125: 107.468
B126: 2023 | C126: 04-APR | D126: 2023-04-01 | E126: 107.1193667 | F126: 4.857187962 | G126: 6.256903009 | H126: 107.119
B127: 2023 | C127: 05-MAY | D127: 2023-05-01 | E127: 106.6006557 | F127: 4.01184568 | G127: 6.14851025 | H127: 106.601
B128: 2023 | C128: 06-JUN | D128: 2023-06-01 | E128: 106.1967806 | F128: 2.846500556 | G128: 5.937289856 | H128: 106.197
B129: 2023 | C129: 07-JUL | D129: 2023-07-01 | E129: 106.2039332 | F129: 1.670459185 | G129: 5.563217995 | H129: 106.204
B130: 2023 | C130: 08-AUG | D130: 2023-08-01 | E130: 106.9386161 | F130: 0.475231041 | G130: 4.947645457 | H130: 106.939
B131: 2023 | C131: 09-SEPT | D131: 2023-09-01 | E131: 107.9987331 | F131: 1.692030533 | G131: 4.49825789 | H131: 107.999
B132: 2023 | C132: 10-OCT | D132: 2023-10-01 | E132: 108.1433266 | F132: 1.736423478 | G132: 4.055618712 | H132: 108.143
B133: 2023 | C133: 11-NOV | D133: 2023-11-01 | E133: 108.3391535 | F133: 1.738914473 | G133: 3.652536355 | H133: 108.339
B134: 2023 | C134: 12-DEC | D134: 2023-12-01 | E134: 108.7859233 | F134: 2.269799925 | G134: 3.366428853 | H134: 108.786
B135: 2024 | C135: 01-JAN | D135: 2024-01-01 | E135: 108.3139485 | F135: 1.520045772 | G135: 2.949287618 | H135: 108.314
B136: 2024 | C136: 02-FEB | D136: 2024-02-01 | E136: 108.5718757 | F136: 0.9126691174 | G136: 2.442659794 | H136: 108.572
B137: 2024 | C137: 03-MAR | D137: 2024-03-01 | E137: 109.3711158 | F137: 1.770529471 | G137: 2.107505486 | H137: 109.371
B138: 2024 | C138: 04-APR | D138: 2024-04-01
B139: 2024 | C139: 05-MAY | D139: 2024-05-01
B140: 2024 | C140: 06-JUN | D140: 2024-06-01
B141: 2024 | C141: 07-JUL | D141: 2024-07-01
B142: 2024 | C142: 08-AUG | D142: 2024-08-01
B143: 2024 | C143: 09-SEPT | D143: 2024-09-01
B144: 2024 | C144: 10-OCT | D144: 2024-10-01
B145: 2024 | C145: 11-NOV | D145: 2024-11-01
B146: 2024 | C146: 12-DEC | D146: 2024-12-01

Sheet Monthly Prices 2001-2023
B2: Prices of crude oil, utilities and gasoline, 2001 - 2024
C4: Crude | D4: Total energy charge2
C5: Crude | G5: Fixed
C6: oil1 | G6: charge3 | H6: Electricity4 | I6: Water5 | J6: Gasoline6 | K6: Diesel6
B7: Month | D7: ≤ 500 kWh | E7: 501 - 1000 kWh | F7: > 1001 kWh
B9: 2001-01-01 | C9: 29.65 | D9: 25.59 | E9: 23.09 | F9: 23.09 | G9: 0 | H9: 180.01795 | I9: 91.80265949 | J9: 126.9 | K9: 95.2
B10: 2001-02-01 | C10: 29.71 | D10: 24.93 | E10: 22.43 | F10: 22.43 | G10: 0 | H10: 175.22965 | I10: 89.44385581 | J10: 133.4 | K10: 96.6
B11: 2001-03-01 | C11: 27.33 | D11: 24.93 | E11: 22.43 | F11: 22.43 | G11: 0 | H11: 175.22965 | I11: 90.85421787 | J11: 132 | K11: 92.6
B12: 2001-04-01 | C12: 27.48 | D12: 24.93 | E12: 22.43 | F12: 22.43 | G12: 0 | H12: 175.22965 | I12: 90.85421787 | J12: 129.4 | K12: 89
B13: 2001-05-01 | C13: 28.62 | D13: 24.7 | E13: 22.2 | F13: 22.2 | G13: 0 | H13: 173.561 | I13: 90.01796001 | J13: 138.3 | K13: 90.8
B14: 2001-06-01 | C14: 27.76 | D14: 24.7 | E14: 22.2 | F14: 22.2 | G14: 0 | H14: 173.561 | I14: 90.01796001 | J14: 136.5 | K14: 91.1
B15: 2001-07-01 | C15: 26.43 | D15: 24.7 | E15: 22.2 | F15: 22.2 | G15: 0 | H15: 173.561 | I15: 90.01796001 | J15: 127.4 | K15: 91.4
B16: 2001-08-01 | C16: 27.32 | D16: 24.13 | E16: 21.63 | F16: 21.63 | G16: 0 | H16: 169.42565 | I16: 87.95381655 | J16: 124.2 | K16: 88.4
B17: 2001-09-01 | C17: 26.26 | D17: 24.13 | E17: 21.63 | F17: 21.63 | G17: 0 | H17: 169.42565 | I17: 87.95381655 | J17: 129.2 | K17: 90.1
B18: 2001-10-01 | C18: 22.24 | D18: 24.13 | E18: 21.63 | F18: 21.63 | G18: 0 | H18: 169.42565 | I18: 87.95381655 | J18: 128 | K18: 90.4
B19: 2001-11-01 | C19: 19.78 | D19: 24.13 | E19: 21.63 | F19: 21.63 | G19: 0 | H19: 169.42565 | I19: 87.95381655 | J19: 118.9 | K19: 84.7
B20: 2001-12-01 | C20: 19.52 | D20: 24.13 | E20: 21.63 | F20: 21.63 | G20: 0 | H20: 169.42565 | I20: 87.95381655 | J20: 115.9 | K20: 80.9
B22: Average 2001 | C22: =AVERAGE(C9:C20) -> 26.00833333 | D22: 24.59416667 | E22: 22.09416667 | F22: 22.09416667 | G22: 0 | H22: 172.7931792 | I22: 89.39815948 | J22: 128.3416667 | K22: 90.1
B24: 2002-01-01 | C24: 19.79 | D24: 24.13 | E24: 21.63 | F24: 21.63 | G24: 0 | H24: 169.42565 | I24: 87.95381655 | J24: 116.5 | K24: 79.9
B25: 2002-02-01 | C25: 20.39 | D25: 22.67 | E25: 20.17 | F25: 20.17 | G25: 0 | H25: 158.83335 | I25: 82.75514079 | J25: 117.8 | K25: 80.2
B26: 2002-03-01 | C26: 24.05 | D26: 22.67 | E26: 20.17 | F26: 20.17 | G26: 0 | H26: 158.83335 | I26: 82.75514079 | J26: 117.9 | K26: 81.3
B27: 2002-04-01 | C27: 26.06 | D27: 22.67 | E27: 20.17 | F27: 20.17 | G27: 0 | H27: 158.83335 | I27: 82.75514079 | J27: 126.4 | K27: 86
B28: 2002-05-01 | C28: 27 | D28: 25.19 | E28: 22.69 | F28: 22.69 | G28: 0 | H28: 177.11595 | I28: 91.80754121 | J28: 129.7 | K28: 87.6
B29: 2002-06-01 | C29: 25.52 | D29: 25.19 | E29: 22.69 | F29: 22.69 | G29: 0 | H29: 177.11595 | I29: 91.80754121 | J29: 127.7 | K29: 87.3
B30: 2002-07-01 | C30: 26.94 | D30: 25.19 | E30: 22.69 | F30: 22.69 | G30: 0 | H30: 177.11595 | I30: 91.80754121 | J30: 127.4 | K30: 86.2
B31: 2002-08-01 | C31: 28.22 | D31: 25.72 | E31: 23.22 | F31: 23.22 | G31: 0 | H31: 180.9611 | I31: 93.87168468 | J31: 128.3 | K31: 87.9
B32: 2002-09-01 | C32: 29.57 | D32: 25.72 | E32: 23.22 | F32: 23.22 | G32: 0 | H32: 180.9611 | I32: 93.87168468 | J32: 133.1 | K32: 94.9
B33: 2002-10-01 | C33: 29.29 | D33: 25.72 | E33: 23.22 | F33: 23.22 | G33: 0 | H33: 180.9611 | I33: 93.87168468 | J33: 134.6 | K33: 98.9
B34: 2002-11-01 | C34: 26.5 | D34: 26.88 | E34: 24.38 | F34: 24.38 | G34: 0 | H34: 189.3769 | I34: 98.26700697 | J34: 136.7 | K34: 98.9
B35: 2002-12-01 | C35: 29.42 | D35: 26.88 | E35: 24.38 | F35: 24.38 | G35: 0 | H35: 189.3769 | I35: 98.26700697 | J35: 130.3 | K35: 95.1
B37: Average 2002 | C37: =AVERAGE(C24:C35) -> 26.0625 | D37: 24.88583333 | E37: 22.38583333 | F37: 22.38583333 | G37: =AVERAGE(G24:G35) -> 0 | H37: 174.9092208 | I37: 90.81591088 | J37: 127.2 | K37: 88.68333333
B39: 2003-01-01 | C39: 32.84 | D39: 26.88 | E39: 24.38 | F39: 24.38 | G39: 0 | H39: 189.3769 | I39: 98.26700697 | J39: 134.7 | K39: 99.6
B40: 2003-02-01 | C40: 35.88 | D40: 29.64 | E40: 27.14 | F40: 27.14 | G40: 0 | H40: 209.4007 | I40: 108.1556653 | J40: 141.7 | K40: 103.2
B41: 2003-03-01 | C41: 33.63 | D41: 28.37 | E41: 25.87 | F41: 25.87 | G41: 0 | H41: 200.18685 | I41: 103.760343 | J41: 147.4 | K41: 111.7
B42: 2003-04-01 | C42: 28.77 | D42: 27.31 | E42: 24.81 | F42: 24.81 | G42: 0 | H42: 192.49655 | I42: 100.0565882 | J42: 145.3 | K42: 104.4
B43: 2003-05-01 | C43: 27.84 | D43: 26.84 | E43: 24.34 | F43: 24.34 | G43: 0 | H43: 189.0867 | I43: 98.67873269 | J43: 136.2 | K43: 96.5
B44: 2003-06-01 | C44: 30.69 | D44: 26.84 | E44: 24.34 | F44: 24.34 | G44: 0 | H44: 189.0867 | I44: 98.67873269 | J44: 134.9 | K44: 95.3
B45: 2003-07-01 | C45: 31.38 | D45: 26.84 | E45: 24.34 | F45: 24.34 | G45: 0 | H45: 189.0867 | I45: 98.67873269 | J45: 136.7 | K45: 96.9
B46: 2003-08-01 | C46: 31.38 | D46: 25.74 | E46: 23.24 | F46: 23.24 | G46: 0 | H46: 181.1062 | I46: 94.9749779 | J46: 139.6 | K46: 98.3
B47: 2003-09-01 | C47: 28.31 | D47: 26.44 | E47: 23.94 | F47: 23.94 | G47: 0 | H47: 186.1847 | I47: 97.30615674 | J47: 144 | K47: 100.2
B48: 2003-10-01 | C48: 52.69 | D48: 26.44 | E48: 23.94 | F48: 23.94 | G48: 0 | H48: 186.1847 | I48: 97.30615674 | J48: 135.9 | K48: 96.1
B49: 2003-11-01 | C49: 48.41 | D49: 26.44 | E49: 23.94 | F49: 23.94 | G49: 0 | H49: 186.1847 | I49: 97.30615674 | J49: 137.7 | K49: 100
B50: 2003-12-01 | C50: 32.06 | D50: 26.44 | E50: 23.94 | F50: 23.94 | G50: 0 | H50: 186.1847 | I50: 97.30615674 | J50: 136.4 | K50: 100
B52: Average 2003 | C52: =AVERAGE(C39:C50) -> 34.49 | D52: 27.01833333 | E52: 24.51833333 | F52: 24.51833333 | G52: =AVERAGE(G39:G50) -> 0 | H52: 190.3805083 | I52: 99.20628386 | J52: 139.2083333 | K52: 100.1833333
B54: 2004-01-01 | C54: 34.03 | D54: 26.44 | E54: 23.94 | F54: 23.94 | G54: 0 | H54: 186.1847 | I54: 97.30615674 | J54: 138.2 | K54: 101.9
B55: 2004-02-01 | C55: 34.73 | D55: 26.44 | E55: 23.94 | F55: 23.94 | G55: 0 | H55: 186.1847 | I55: 97.30615674 | J55: 144.2 | K55: 106.2
B56: 2004-03-01 | C56: 36.89 | D56: 26.44 | E56: 23.94 | F56: 23.94 | G56: 0 | H56: 186.1847 | I56: 97.30615674 | J56: 146.3 | K56: 104.6
B57: 2004-04-01 | C57: 36.59 | D57: 26.44 | E57: 23.94 | F57: 23.94 | G57: 0 | H57: 186.1847 | I57: 97.30615674 | J57: 149.5 | K57: 106.3
B58: 2004-05-01 | C58: 40.28 | D58: 26.44 | E58: 23.94 | F58: 23.94 | G58: 0 | H58: 186.1847 | I58: 97.30615674 | J58: 152.2 | K58: 106.7
B59: 2004-06-01 | C59: 38.39 | D59: 27.77 | E59: 25.27 | F59: 25.27 | G59: 0 | H59: 195.83385 | I59: 101.9632349 | J59: 160.9 | K59: 109.6
B60: 2004-07-01 | C60: 40.19 | D60: 27.77 | E60: 25.27 | F60: 25.27 | G60: 0 | H60: 195.83385 | I60: 101.9632349 | J60: 153.3 | K60: 108.6
B61: 2004-08-01 | C61: 45.17 | D61: 27.31 | E61: 24.81 | F61: 24.81 | G61: 0 | H61: 192.49655 | I61: 100.5853794 | J61: 156.5 | K61: 113.5
B62: 2004-09-01 | C62: 44.71 | D62: 27.31 | E62: 24.81 | F62: 24.81 | G62: 0 | H62: 192.49655 | I62: 100.5853794 | J62: 153.8 | K62: 117.9
B63: 2004-10-01 | C63: 52.69 | D63: 27.31 | E63: 24.81 | F63: 24.81 | G63: 0 | H63: 192.49655 | I63: 100.5853794 | J63: 156.3 | K63: 123.2
B64: 2004-11-01 | C64: 48.41 | D64: 29.22 | E64: 26.72 | F64: 26.72 | G64: 0 | H64: 206.3536 | I64: 107.4565709 | J64: 162 | K64: 132.3
B65: 2004-12-01 | C65: 43.68 | D65: 27.29 | E65: 24.79 | F65: 24.79 | G65: 0 | H65: 192.35145 | I65: 100.5853794 | J65: 156.9 | K65: 125.8
B67: Average 2004 | C67: =AVERAGE(C54:C65) -> 41.31333333 | D67: 27.18166667 | E67: 24.68166667 | F67: 24.68166667 | G67: =AVERAGE(G54:G65) -> 0 | H67: 191.5654917 | I67: 100.0212785 | J67: 152.5083333 | K67: 113.05
B69: 2005-01-01 | C69: 46.82 | D69: 27.29 | E69: 24.79 | F69: 24.79 | G69: 0 | H69: 192.35145 | I69: 100.5853794 | J69: 147.2 | K69: 118.9
B70: 2005-02-01 | C70: 48.16 | D70: 27.29 | E70: 24.79 | F70: 24.79 | G70: 0 | H70: 192.35145 | I70: 100.5853794 | J70: 156.8 | K70: 122.3
B71: 2005-03-01 | C71: 53.96 | D71: 27.29 | E71: 24.79 | F71: 24.79 | G71: 0 | H71: 192.35145 | I71: 100.5853794 | J71: 156.2 | K71: 124.8
B72: 2005-04-01 | C72: 53.21 | D72: 29.22 | E72: 26.72 | F72: 26.72 | G72: 0 | H72: 206.3536 | I72: 107.4565709 | J72: 168.9 | K72: 134.5
B73: 2005-05-01 | C73: 49.72 | D73: 31.33 | E73: 28.83 | F73: 28.83 | G73: 0 | H73: 221.66165 | I73: 115.1311158 | J73: 171.3 | K73: 136
B74: 2005-06-01 | C74: 55.68 | D74: 32.18 | E74: 29.68 | F74: 29.68 | G74: 0 | H74: 227.8284 | I74: 117.1531986 | J74: 167.1 | K74: 133.5
B75: 2005-07-01 | C75: 58.89 | D75: 32.18 | E75: 29.68 | F75: 29.68 | G75: 0 | H75: 227.8284 | I75: 117.1531986 | J75: 172.9 | K75: 142.7
B76: 2005-08-01 | C76: 64.44 | D76: 32.18 | E76: 29.68 | F76: 29.68 | G76: 0 | H76: 227.8284 | I76: 117.1531986 | J76: 176.3 | K76: 132.2
B77: 2005-09-01 | C77: 65.29 | D77: 32.18 | E77: 29.68 | F77: 29.68 | G77: 0 | H77: 227.8284 | I77: 117.1531986 | J77: 176.3 | K77: 132.2
B78: 2005-10-01 | C78: 62.39 | D78: 33.01 | E78: 30.51 | F78: 30.51 | G78: 0 | H78: 233.85005 | I78: 123.7622266 | J78: 194.9 | K78: 156.9
B79: 2005-11-01 | C79: 58.57 | D79: 34.51 | E79: 32.01 | F79: 32.01 | G79: 0 | H79: 244.73255 | I79: 123.7622266 | J79: 171.6 | K79: 162.9
B80: 2005-12-01 | C80: 59.14 | D80: 34.51 | E80: 32.01 | F80: 32.01 | G80: 0 | H80: 244.73255 | I80: 123.7622266 | J80: 153.4 | K80: 135.6
B82: Average 2005 | C82: =AVERAGE(C69:C80) -> 56.35583333 | D82: 31.0975 | E82: 28.5975 | F82: 28.5975 | G82: =AVERAGE(G69:G80) -> 0 | H82: 219.9748625 | I82: 113.6869416 | J82: 167.7416667 | K82: 136.0416667
B84: January-06 | C84: 65.19 | D84: 34.51 | E84: 32.01 | F84: 32.01 | G84: 0 | H84: 244.73255 | I84: 123.7622266 | J84: 159.2 | K84: 137.4
B85: 2006-02-01 | C85: 62.24 | D85: 35.91 | E85: 33.41 | F85: 33.41 | G85: 0 | H85: 254.88955 | I85: 127.7531878 | J85: 166.2 | K85: 140.6
B86: 2006-03-01 | C86: 62.57 | D86: 35.91 | E86: 33.41 | F86: 33.41 | G86: 0 | H86: 254.88955 | I86: 127.7531878 | J86: 158 | K86: 140
B87: April-06 | C87: 69.42 | D87: 35.91 | E87: 33.41 | F87: 33.41 | G87: 0 | H87: 254.88955 | I87: 127.7531878 | J87: 172 | K87: 144.6
B88: May-06 | C88: 70.77 | D88: 37.69 | E88: 35.19 | F88: 35.19 | G88: 0 | H88: 267.80345 | I88: 133.7130273 | J88: 189.8 | K88: 155.4
B89: June-06 | C89: 71.03 | D89: 37.69 | E89: 35.19 | F89: 35.19 | G89: 0 | H89: 267.80345 | I89: 133.7130273 | J89: 184.7 | K89: 155.7
B90: 2006-07-01 | C90: 74.43 | D90: 37.69 | E90: 35.19 | F90: 35.19 | G90: 0 | H90: 267.80345 | I90: 133.7130273 | J90: 187.3 | K90: 158.1
B91: 2006-08-01 | C91: 73.69 | D91: 37.69 | E91: 35.19 | F91: 35.19 | G91: 0 | H91: 267.80345 | I91: 133.7130273 | J91: 194.2 | K91: 161.6
B92: 2006-09-01 | C92: 64.97 | D92: 37.69 | E92: 35.19 | F92: 35.19 | G92: 0 | H92: 267.80345 | I92: 133.7130273 | J92: 181.9 | K92: 161.5
B93: 2006-10-01 | C93: 58.93 | D93: 33.74 | E93: 31.24 | F93: 31.24 | G93: 0 | H93: 239.1462 | I93: 123.7622266 | J93: 175 | K93: 149.6
B94: 2006-11-01 | C94: 58.33 | D94: 33.74 | E94: 31.24 | F94: 31.24 | G94: 0 | H94: 239.1462 | I94: 123.7622266 | J94: 172.1 | K94: 145.7
B95: 2006-12-01 | C95: 61.86 | D95: 32.73 | E95: 30.23 | F95: 30.23 | G95: 0 | H95: 231.81865 | I95: 121.2505688 | J95: 174.2 | K95: 147
B97: Average 2006 | C97: =AVERAGE(C84:C95) -> 66.11916667 | D97: 35.90833333 | E97: 33.40833333 | F97: 33.40833333 | G97: =AVERAGE(G84:G95) -> 0 | H97: 254.8774583 | I97: 128.6968291 | J97: 176.2166667 | K97: 149.7666667
B99: 2007-01-01 | C99: 54.24 | D99: 32.73 | E99: 30.23 | F99: 30.23 | G99: 0 | H99: 231.81865 | I99: 121.2505688 | J99: 187.2 | K99: 158.5
B100: 2007-02-01 | C100: 58.52 | D100: 31.72 | E100: 29.22 | F100: 29.22 | G100: 0 | H100: 224.4911 | I100: 118.270649 | J100: 177.4 | K100: 148.9
B101: 2007-03-01 | C101: 60.57 | D101: 31.72 | E101: 29.22 | F101: 29.22 | G101: 0 | H101: 224.4911 | I101: 118.270649 | J101: 187.9 | K101: 156.9
B102: 2007-04-01 | C102: 63.93 | D102: 31.72 | E102: 29.22 | F102: 29.22 | G102: 0 | H102: 224.4911 | I102: 118.270649 | J102: 200.1 | K102: 164.6
B103: 2007-05-01 | C103: 63.56 | D103: 33.3 | E103: 30.8 | F103: 30.8 | G103: 0 | H103: 235.954 | I103: 123.5813001 | J103: 206.4 | K103: 166
B104: 2007-06-01 | C104: 66.87 | D104: 37.2 | E104: 34.7 | F104: 34.7 | G104: 0 | H104: 264.2485 | I104: 136.2033722 | J104: 214.8 | K104: 164.7
B105: 2007-07-01 | C105: 73.66 | D105: 37.7 | E105: 35.2 | F105: 35.2 | G105: 0 | H105: 267.876 | I105: 137.693332 | J105: 206.8 | K105: 167.9
B106: 2007-08-01 | C106: 72.77 | D106: 39.63 | E106: 37.13 | F106: 37.13 | G106: 0 | H106: 281.87815 | I106: 142.6953346 | J106: 205.2 | K106: 170.5
B107: 2007-09-01 | C107: 79.72 | D107: 38.82 | E107: 36.32 | F107: 36.32 | G107: 0 | H107: 276.0016 | I107: 142.6953346 | J107: 197.4 | K107: 167.9
B108: 2007-10-01 | C108: 84.77 | D108: 39.63 | E108: 37.13 | F108: 37.13 | G108: 0 | H108: 281.87815 | I108: 142.6953346 | J108: 202.4 | K108: 175.8
B109: 2007-11-01 | C109: 94.65 | D109: 42.06 | E109: 39.56 | F109: 39.56 | G109: 0 | H109: 299.5078 | I109: 149.6449026 | J109: 203.4 | K109: 181.5
B110: 2007-12-01 | C110: 91.67 | D110: 42.87 | E110: 40.37 | F110: 40.37 | G110: 0 | H110: 305.38435 | I110: 151.8372554 | J110: 216.1 | K110: 197.3
B112: Average 2007 | C112: =AVERAGE(C99:C110) -> 72.0775 | D112: 36.59166667 | E112: 34.09166667 | F112: 34.09166667 | G112: =AVERAGE(G99:G110) -> 0 | H112: 259.8350417 | I112: 133.5923902 | J112: 200.425 | K112: 168.375
B114: 2008-01-02 | C114: 93.46 | D114: 44.5 | E114: 42 | F114: 42 | G114: 0 | H114: 317.21 | I114: 156.6583316 | J114: 210.9 | K114: 192.7
B115: 2008-02-08 | C115: 94.96 | D115: 44.5 | E115: 42 | F115: 42 | G115: 0 | H115: 317.21 | I115: 156.6583316 | J115: 213.1 | K115: 191.6
B116: 2008-03-08 | C116: 105.64 | D116: 44.5 | E116: 42 | F116: 42 | G116: 0 | H116: 317.21 | I116: 156.6583316 | J116: 217.7 | K116: 200.3
B117: 2008-04-08 | C117: 111.51 | D117: 44.5 | E117: 42 | F117: 42 | G117: 0 | H117: 317.21 | I117: 156.6583316 | J117: 227.1 | K117: 221
B118: 2008-05-01 | C118: 124.4 | D118: 44.5 | E118: 42 | F118: 42 | G118: 0 | H118: 317.21 | I118: 156.6583316 | J118: 240.4 | K118: 231
B119: 2008-06-01 | C119: 133.58 | D119: 46.93 | E119: 44.43 | F119: 44.43 | G119: 0 | H119: 334.83965 | I119: 167.9820267 | J119: 256.7 | K119: 251.3
B120: 2008-07-01 | C120: 135.94 | D120: 49.98 | E120: 47.48 | F120: 47.48 | G120: 0 | H120: 356.9674 | I120: 176.8472685 | J120: 266.2 | K120: 257.9
B121: 2008-08-01 | C121: 117.91 | D121: 55.05 | E121: 52.55 | F121: 52.55 | G121: 0 | H121: 393.75025 | I121: 188.5221601 | J121: 259.7 | K121: 256.5
B122: 2008-09-01 | C122: 104.89 | D122: 53.02 | E122: 50.52 | F122: 50.52 | G122: 0 | H122: 379.0226 | I122: 187.2131267 | J122: 247.3 | K122: 225.7
B123: 2008-10-01 | C123: 78.36 | D123: 48.96 | E123: 46.46 | F123: 46.46 | G123: 0 | H123: 349.5673 | I123: 174.2185452 | J123: 256.6 | K123: 216.7
B124: 2008-11-01 | C124: 57.11 | D124: 40.85 | E124: 38.35 | F124: 38.35 | G124: 0 | H124: 290.72925 | I124: 147.3779543 | J124: 185.8 | K124: 175.3
B125: 2008-12-01 | C125: 40.71 | D125: 30.7 | E125: 28.2 | F125: 28.2 | G125: 0 | H125: 217.091 | I125: 116.1315007 | J125: 156.8 | K125: 153.8
B127: Average 2008 | C127: =AVERAGE(C114:C125) -> 99.8725 | D127: 45.66583333 | E127: 43.16583333 | F127: 43.16583333 | G127: =AVERAGE(G114:G125) -> 0 | H127: 325.6681208 | I127: 161.7986867 | J127: 228.1916667 | K127: 214.4833333
B129: 2009-01-01 | C129: 41.69 | D129: 30.7 | E129: 28.2 | F129: 28.2 | G129: 0 | H129: 217.091 | I129: 116.1315007 | J129: 141.4 | K129: 128.1
B130: 2009-02-01 | C130: 38.99 | D130: 30.7 | E130: 28.2 | F130: 28.2 | G130: 0 | H130: 217.091 | I130: 116.1315007 | J130: 153.8 | K130: 133.7
B131: 2009-03-01 | C131: 47.83 | D131: 31.92 | E131: 29.42 | F131: 29.42 | G131: 0 | H131: 225.9421 | I131: 120.2395274 | J131: 156.8 | K131: 125.6
B132: 2009-04-01 | C132: 49.62 | D132: 31.92 | E132: 29.42 | F132: 29.42 | G132: 0 | H132: 225.9421 | I132: 120.2395274 | J132: 161.7 | K132: 125.4
B133: 2009-05-01 | C133: 57.75 | D133: 32.73 | E133: 30.23 | F133: 30.23 | G133: 0 | H133: 231.81865 | I133: 122.8575942 | J133: 166.3 | K133: 132.3
B134: 2009-06-01 | C134: 69.54 | D134: 37.6 | E134: 35.1 | F134: 35.1 | G134: 0 | H134: 267.1505 | I134: 141.1947183 | J134: 182.4 | K134: 137.3
B135: 2009-07-01 | C135: 64.88 | D135: 42.06 | E135: 39.56 | F135: 39.56 | G135: 0 | H135: 299.5078 | I135: 156.3958163 | J135: 192.9 | K135: 151.5
B136: 2009-08-01 | C136: 71.1 | D136: 42.06 | E136: 39.56 | F136: 39.56 | G136: 0 | H136: 299.5078 | I136: 156.3958163 | J136: 184.9 | K136: 147.3
B137: 2009-09-01 | C137: 69.74 | D137: 42.06 | E137: 39.56 | F137: 39.56 | G137: 0 | H137: 299.5078 | I137: 156.3958163 | J137: 193.8 | K137: 157.3
B138: 2009-10-01 | C138: 74.78 | D138: 42.06 | E138: 39.56 | F138: 39.56 | G138: 0 | H138: 299.5078 | I138: 156.3958163 | J138: 183.3 | K138: 150.1
B139: 2009-11-01 | C139: 77.94 | D139: 42.06 | E139: 39.56 | F139: 39.56 | G139: 0 | H139: 299.5078 | I139: 156.3958163 | J139: 191.3 | K139: 160
B140: 2009-12-01 | C140: 73.7 | D140: 42.06 | E140: 39.56 | F140: 39.56 | G140: 0 | H140: 299.5078 | I140: 156.3958163 | J140: 193.2 | K140: 161.8
B142: Average 2009 | C142: =AVERAGE(C129:C140) -> 61.46333333 | D142: 37.3275 | E142: 34.8275 | F142: 34.8275 | G142: =AVERAGE(G129:G140) -> 0 | H142: 265.1735125 | I142: 139.5974389 | J142: 175.15 | K142: 142.5333333
B144: 2010-01-01 | C144: 78.41 | D144: 42.06 | E144: 39.56 | F144: 39.56 | G144: 0 | H144: 299.5078 | I144: 156.3958163 | J144: 186 | K144: 156.6
B145: 2010-02-01 | C145: 76.48 | D145: 42.06 | E145: 39.56 | F145: 39.56 | G145: 0 | H145: 299.5078 | I145: 156.3958163 | J145: 191.8 | K145: 160.3
B146: 2010-03-01 | C146: 81.01 | D146: 44.7 | E146: 42.2 | F146: 42.2 | G146: 0 | H146: 318.661 | I146: 162.2613809 | J146: 189.7 | K146: 158
B147: 2010-04-01 | C147: 84.03 | D147: 44.7 | E147: 42.2 | F147: 42.2 | G147: 0 | H147: 318.661 | I147: 162.2613809 | J147: 199.1 | K147: 164.1
B148: 2010-05-01 | C148: 73.75 | D148: 44.7 | E148: 42.2 | F148: 42.2 | G148: 0 | H148: 318.661 | I148: 162.2613809 | J148: 203.6 | K148: 170.2
B149: 2010-06-01 | C149: 75.03 | D149: 44.7 | E149: 42.2 | F149: 42.2 | G149: 0 | H149: 318.661 | I149: 162.2613809 | J149: 193.5 | K149: 162.2
B150: 2010-07-01 | C150: 76.28 | D150: 44.7 | E150: 42.2 | F150: 42.2 | G150: 0 | H150: 318.661 | I150: 162.2613809 | J150: 192.5 | K150: 160.4
B151: 2010-08-01 | C151: 76.93 | D151: 44.7 | E151: 42.2 | F151: 42.2 | G151: 0 | H151: 318.661 | I151: 162.2613809 | J151: 192.3 | K151: 159.2
B152: 2010-09-01 | C152: 74.56 | D152: 44.7 | E152: 42.2 | F152: 42.2 | G152: 0 | H152: 318.661 | I152: 162.2613809 | J152: 190.6 | K152: 161.5
B153: 2010-10-01 | C153: 81.21 | D153: 43.33 | E153: 40.83 | F153: 40.83 | G153: 0 | H153: 308.72 | I153: 153.95 | J153: 189.5 | K153: 162.8
B154: 2010-11-01 | C154: 84.09 | D154: 43.33 | E154: 40.83 | F154: 40.83 | G154: 0 | H154: 308.72165 | I154: 153.9481031 | J154: 195.2 | K154: 170
B155: 2010-12-01 | C155: 88.83 | D155: 43.33 | E155: 40.83 | F155: 40.83 | G155: 0 | H155: 308.72165 | I155: 153.9481031 | J155: 197.4 | K155: 173.3
B157: Average 2010 | C157: =AVERAGE(C144:C155) -> 79.2175 | D157: 43.9175 | E157: 41.4175 | F157: 41.4175 | G157: =AVERAGE(G144:G155) -> 0 | H157: 312.983825 | I157: 159.2056254 | J157: 193.4333333 | K157: 163.2166667
B159: 2011-01-01 | C159: 89.11 | D159: 43.33 | E159: 40.83 | F159: 40.83 | G159: 0 | H159: 308.72165 | I159: 153.9481031 | J159: 207.3 | K159: 179.4
B160: 2011-02-01 | C160: 88.61 | D160: 43.33 | E160: 40.83 | F160: 40.83 | G160: 0 | H160: 308.72165 | I160: 153.9481031 | J160: 211.4 | K160: 187
B161: 2011-03-01 | C161: 102.25 | D161: 43.33 | E161: 40.83 | F161: 40.83 | G161: 0 | H161: 308.72165 | I161: 153.9481031 | J161: 216.7 | K161: 198.1
B162: 2011-04-01 | C162: 108.71 | D162: 48.99 | E162: 46.49 | F162: 46.49 | G162: 0 | H162: 349.78495 | I162: 172.5981062 | J162: 235.8 | K162: 210.2
B163: 2011-05-01 | C163: 100.81 | D163: 48.99 | E163: 46.49 | F163: 46.49 | G163: 0 | H163: 349.78495 | I163: 172.5981062 | J163: 251.9 | K163: 218.1
B164: 2011-06-01 | C164: 97.39 | D164: 48.99 | E164: 46.49 | F164: 46.49 | G164: 0 | H164: 349.78495 | I164: 172.5981062 | J164: 245 | K164: 206
B165: 2011-07-01 | C165: 96.68 | D165: 48.99 | E165: 46.49 | F165: 46.49 | G165: 0 | H165: 349.78495 | I165: 172.5981062 | J165: 235 | K165: 206.7
B166: 2011-08-01 | C166: 86.03 | D166: 48.99 | E166: 52.47 | F166: 52.47 | G166: 0 | H166: 363.26985 | I166: 195.4742298 | J166: 243 | K166: 211.1
B167: 2011-09-01 | C167: 85.95 | D167: 48.99 | E167: 52.47 | F167: 52.47 | G167: 0 | H167: 363.26985 | I167: 195.4742298 | J167: 235 | K167: 204.7
B168: 2011-10-01 | C168: 85.98 | D168: 48.99 | E168: 52.47 | F168: 52.47 | G168: 0 | H168: 363.26985 | I168: 195.4742298 | J168: 227 | K168: 204.4
B169: 2011-11-01 | C169: 96.61 | D169: 48.99 | E169: 52.47 | F169: 52.47 | G169: 0 | H169: 363.26985 | I169: 195.4742298 | J169: 226.6 | K169: 205.7
B170: 2011-12-01 | C170: 98.72 | D170: 48.99 | E170: 52.47 | F170: 52.47 | G170: 0 | H170: 363.26985 | I170: 195.4742298 | J170: 219.1 | K170: 210.1
B172: Average 2011 | C172: =AVERAGE(C159:C170) -> 94.7375 | D172: 47.575 | E172: 47.56666667 | F172: 47.56666667 | G172: =AVERAGE(G159:G170) -> 0 | H172: 345.1378333 | I172: 177.4673236 | J172: 229.4833333 | K172: 203.4583333
B174: 2012-01-01 | C174: 100.53 | D174: 48.99 | E174: 52.47 | F174: 52.47 | G174: 0 | H174: 363.26985 | I174: 195.4742298 | J174: 219.4 | K174: 201.7
B175: 2012-02-01 | C175: 101.3175 | D175: 48.99 | E175: 52.47 | F175: 52.47 | G175: 0 | H175: 363.26985 | I175: 195.4742298 | J175: 229.9 | K175: 209.4
B176: 2012-03-01 | C176: 106.304 | D176: 48.99 | E176: 52.47 | F176: 52.47 | G176: 0 | H176: 363.26985 | I176: 195.4742298 | J176: 242.1 | K176: 217.4
B177: 2012-04-01 | C177: 103.25 | D177: 48.99 | E177: 52.47 | F177: 52.47 | G177: 0 | H177: 363.26985 | I177: 195.4742298 | J177: 252.4 | K177: 219.8
B178: 2012-05-01 | C178: 96.11 | D178: 48.99 | E178: 52.47 | F178: 52.47 | G178: 0 | H178: 363.26985 | I178: 195.4742298 | J178: 252.3 | K178: 217.3
B179: 2012-06-01 | C179: 83.22 | D179: 48.99 | E179: 52.47 | F179: 52.47 | G179: 0 | H179: 363.26985 | I179: 195.4742298 | J179: 235.2 | K179: 204.6
B180: 2012-07-01 | C180: 87.685 | D180: 48.99 | E180: 52.47 | F180: 52.47 | G180: 0 | H180: 363.26985 | I180: 195.4742298 | J180: 223.6 | K180: 191.6
B181: 2012-08-01 | C181: 93.714 | D181: 48.99 | E181: 52.47 | F181: 52.47 | G181: 0 | H181: 363.26985 | I181: 137.0533306 | J181: 228.7 | K181: 203.2
B182: 2012-09-01 | C182: 94.5725 | D182: 48.99 | E182: 52.47 | F182: 52.47 | G182: 0 | H182: 363.26985 | I182: 137.0533306 | J182: 244.7 | K182: 214.4
B183: 2012-10-01 | C183: 90.0425 | D183: 48.99 | E183: 52.47 | F183: 52.47 | G183: 0 | H183: 363.26985 | I183: 137.0533306 | J183: 244.9 | K183: 218.1
B184: 2012-11-01 | C184: 86.478 | D184: 41.1 | E184: 44.9 | F184: 58.4 | G184: 0 | H184: 306.7495 | I184: 137.0533306 | J184: 233 | K184: 215.7
B185: 2012-12-01 | C185: 87.77 | D185: 41.1 | E185: 44.9 | F185: 58.4 | G185: 0 | H185: 306.7495 | I185: 137.0533306 | J185: 220.2 | K185: 207.6
B187: Average 2012 | C187: =AVERAGE(C174:C185) -> 94.24945833 | D187: 47.675 | E187: 51.20833333 | F187: 53.45833333 | G187: 0 | H187: 353.8497917 | I187: 171.1321885 | J187: 235.5333333 | K187: 210.0666667
B189: 2013-01-01 | C189: 94.035 | D189: 41.1 | E189: 44.9 | F189: 58.4 | G189: 0 | H189: 306.7495 | I189: 137.0533306 | J189: 218.8 | K189: 206.4
B190: 2013-02-01 | C190: 96.21 | D190: 41.1 | E190: 44.9 | F190: 58.4 | G190: 0 | H190: 306.7495 | I190: 137.0533306 | J190: 227.8 | K190: 210.4
B191: 2013-03-01 | C191: 93.004 | D191: 41.1 | E191: 44.9 | F191: 58.4 | G191: 0 | H191: 306.7495 | I191: 137.0533306 | J191: 242 | K191: 218.8
B192: 2013-04-01 | C192: 91.86 | D192: 41.1 | E192: 44.9 | F192: 58.4 | G192: 0 | H192: 306.7495 | I192: 137.0533306 | J192: 239.5 | K192: 209
B193: 2013-05-01 | C193: 94.394 | D193: 41.1 | E193: 44.9 | F193: 58.4 | G193: 0 | H193: 306.7495 | I193: 137.0533306 | J193: 231.4 | K193: 201.6
B194: 2013-06-01 | C194: 95.773 | D194: 41.1 | E194: 44.9 | F194: 58.4 | G194: 0 | H194: 306.7495 | I194: 137.0533306 | J194: 232.4 | K194: 200.1
B195: 2013-07-01 | C195: 104.53 | D195: 41.1 | E195: 44.9 | F195: 58.4 | G195: 0 | H195: 306.7495 | I195: 137.0533306 | J195: 228.9 | K195: 197.6
B196: 2013-08-01 | C196: 106.3 | D196: 41.1 | E196: 44.9 | F196: 58.4 | G196: 0 | H196: 306.7495 | I196: 137.0533306 | J196: 239.4 | K196: 204.2
B197: 2013-09-01 | C197: 106.6125 | D197: 41.1 | E197: 44.9 | F197: 58.4 | G197: 0 | H197: 306.7495 | I197: 137.0533306 | J197: 237.8 | K197: 208.3
B198: 2013-10-01 | C198: 101.23 | D198: 41.1 | E198: 44.9 | F198: 58.4 | G198: 0 | H198: 306.7495 | I198: 137.0533306 | J198: 223.5 | K198: 207.6
B199: 2013-11-01 | C199: 94.416 | D199: 41.1 | E199: 44.9 | F199: 58.4 | G199: 0 | H199: 306.7495 | I199: 137.0533306 | J199: 217.1 | K199: 204.5
B200: 2013-12-01 | C200: 97.61 | D200: 41.1 | E200: 44.9 | F200: 58.4 | G200: 0 | H200: 306.7495 | I200: 137.0533306 | J200: 215.1 | K200: 201.5
B202: Average 2013 | C202: =AVERAGE(C189:C200) -> 97.997875 | D202: 41.1 | E202: 44.9 | F202: 58.4 | G202: 0 | H202: 306.7495 | I202: 137.0533306 | J202: 229.475 | K202: 205.8333333
B204: 2014-01-01 | C204: 95.07 | D204: 41.1 | E204: 44.9 | F204: 58.4 | G204: 0 | H204: 306.7495 | I204: 137.0533306 | J204: 219.5 | K204: 205.8
B205: 2014-02-01 | C205: 100.9225 | D205: 41.1 | E205: 44.9 | F205: 58.4 | G205: 0 | H205: 306.7495 | I205: 137.0533306 | J205: 220.3 | K205: 204.8
B206: 2014-03-01 | C206: 100.76 | D206: 41.1 | E206: 44.9 | F206: 58.4 | G206: 0 | H206: 306.7495 | I206: 137.0533306 | J206: 226.3 | K206: 208.1
B207: 2014-04-01 | C207: 102.31 | D207: 41.1 | E207: 44.9 | F207: 58.4 | G207: 0 | H207: 306.7495 | I207: 137.0533306 | J207: 228.6 | K207: 205
B208: 2014-05-01 | C208: 101.635 | D208: 41.1 | E208: 44.9 | F208: 58.4 | G208: 0 | H208: 306.7495 | I208: 137.0533306 | J208: 236.8 | K208: 205.7
B209: 2014-06-01 | C209: 105.78 | D209: 41.1 | E209: 44.9 | F209: 58.4 | G209: 0 | H209: 306.7495 | I209: 137.0533306 | J209: 234.7 | K209: 204.3
B210: 2014-07-01 | C210: 103.8725 | D210: 41.1 | E210: 44.9 | F210: 58.4 | G210: 0 | H210: 306.7495 | I210: 137.0533306 | J210: 240.4 | K210: 205.1
B211: 2014-08-01 | C211: 97.612 | D211: 41.1 | E211: 44.9 | F211: 58.4 | G211: 0 | H211: 306.7495 | I211: 137.0533306 | J211: 233.6 | K211: 201.6
B212: 2014-09-01 | C212: 93.29 | D212: 41.1 | E212: 44.9 | F212: 58.4 | G212: 0 | H212: 306.7495 | I212: 137.0533306 | J212: 229.3 | K212: 200.9
B213: 2014-10-01 | C213: 85.072 | D213: 47.02 | E213: 46.56 | F213: 55.87 | G213: 2.5 | H213: 342.5928 | I213: 137.0533306 | J213: 222.8 | K213: 195.4
B214: 2014-11-01 | C214: 75.62 | D214: 47.02 | E214: 46.56 | F214: 55.87 | G214: 2.5 | H214: 342.5928 | I214: 137.0533306 | J214: 201.9 | K214: 184.5
B215: 2014-12-01 | C215: 59.95 | D215: 47.02 | E215: 46.56 | F215: 55.87 | G215: 2.5 | H215: 342.5928 | I215: 137.0533306 | J215: 196.7 | K215: 181.3
B217: Average 2014 | C217: =AVERAGE(C204:C215) -> 93.49116667 | D217: 42.58 | E217: 45.315 | F217: 57.7675 | G217: 0.625 | H217: 315.710325 | I217: 137.0533306 | J217: 224.2416667 | K217: 200.2083333
B219: 2015-01-01 | C219: 48.21 | D219: 47.02 | E219: 46.56 | F219: 55.87 | G219: 2.5 | H219: 342.5928 | I219: 137.0533306 | J219: 168.8 | K219: 152.5
B220: 2015-02-01 | C220: 50.64 | D220: 47.02 | E220: 46.56 | F220: 55.87 | G220: 2.5 | H220: 342.5928 | I220: 137.0533306 | J220: 161.7 | K220: 141.9
B221: 2015-03-01 | C221: 47.79 | D221: 47.02 | E221: 46.56 | F221: 55.87 | G221: 2.5 | H221: 342.5928 | I221: 137.0533306 | J221: 177.4 | K221: 155.5
B222: 2015-04-01 | C222: 52.9025 | D222: 47.02 | E222: 46.56 | F222: 55.87 | G222: 2.5 | H222: 342.5928 | I222: 137.0533306 | J222: 180.9 | K222: 150.4
B223: 2015-05-01 | C223: 59 | D223: 47.02 | E223: 46.56 | F223: 55.87 | G223: 2.5 | H223: 342.5928 | I223: 137.0533306 | J223: 189.4 | K223: 153.1
B224: 2015-06-01 | C224: 59.91 | D224: 47.02 | E224: 46.56 | F224: 55.87 | G224: 2.5 | H224: 342.5928 | I224: 137.0533306 | J224: 196.2 | K224: 160.6
B225: 2015-07-01 | C225: 51.82 | D225: 47.02 | E225: 46.56 | F225: 55.87 | G225: 2.5 | H225: 342.5928 | I225: 137.0533306 | J225: 204.3 | K225: 157.3
B226: 2015-08-01 | C226: 42.5525 | D226: 47.02 | E226: 46.56 | F226: 55.87 | G226: 2.5 | H226: 342.5928 | I226: 137.0533306 | J226: 200.6 | K226: 149
B227: 2015-09-01 | C227: 45.7775 | D227: 47.02 | E227: 46.56 | F227: 55.87 | G227: 2.5 | H227: 342.5928 | I227: 137.0533306 | J227: 182.4 | K227: 140.4
B228: 2015-10-01 | C228: 46.07 | D228: 47.02 | E228: 46.56 | F228: 55.87 | G228: 2.5 | H228: 342.5928 | I228: 137.0533306 | J228: 168.2 | K228: 139.5
B229: 2015-11-01 | C229: 42.48 | D229: 47.02 | E229: 46.56 | F229: 55.87 | G229: 2.5 | H229: 342.5928 | I229: 137.0533306 | J229: 165 | K229: 138.4
B230: 2015-12-01 | C230: 37.41 | D230: 47.02 | E230: 46.56 | F230: 55.87 | G230: 2.5 | H230: 342.5928 | I230: 137.0533306 | J230: 162 | K230: 135
B232: Average 2015 | C232: =AVERAGE(C219:C230) -> 48.71354167 | D232: 47.02 | E232: 46.56 | F232: 55.87 | G232: 2.5 | H232: 342.5928 | I232: 137.0533306 | J232: 179.7416667 | K232: 147.8
... 124 more rows

Sheet Inflation 2000-2023
B2: Monthly summary of Inflation, 2000 - 2024 (Jun 2019=100)
C3: Inflation
B4: Period | C4: Monthly | D4: Year-to-date | E4: End of period | F4: Period average
C5: (1 month) | E5: (12 months) | F5: (24 months)
B6: 1980-01-01 | C6: 2.254 | D6: 2.254 | E6: 13.526 | F6: 11.746
B7: 1980-02-01 | C7: 1.377 | D7: 3.662 | E7: 14.109 | F7: 12.093
B8: 1980-03-01 | C8: 1.155 | D8: 4.859 | E8: 14.187 | F8: 12.424
B9: 1980-04-01 | C9: 0.873 | D9: 5.775 | E9: 14.134 | F9: 12.711
B10: 1980-05-01 | C10: 1.398 | D10: 7.254 | E10: 14.425 | F10: 12.966
B11: 1980-06-01 | C11: 1.182 | D11: 8.521 | E11: 14.318 | F11: 13.149
B12: 1980-07-01 | C12: 0.973 | D12: 9.577 | E12: 14.328 | F12: 13.386
B13: 1980-08-01 | C13: 1.478 | D13: 11.197 | E13: 14.67 | F13: 13.605
B14: 1980-09-01 | C14: 0.633 | D14: 11.901 | E14: 14.729 | F14: 13.825
B15: 1980-10-01 | C15: 1.762 | D15: 13.873 | E15: 15.253 | F15: 14.054
B16: 1980-11-01 | C16: 0.804 | D16: 14.789 | E16: 15.276 | F16: 14.284
B17: 1980-12-01 | C17: 1.043 | D17: 15.986 | E17: 15.986 | F17: 14.598
B18: 1981-01-01 | C18: 1.882 | D18: 1.882 | E18: 15.565 | F18: 14.767
B19: 1981-02-01 | C19: 0.715 | D19: 2.611 | E19: 14.81 | F19: 14.822
B20: 1981-03-01 | C20: 0.947 | D20: 3.582 | E20: 14.574 | F20: 14.85
B21: 1981-04-01 | C21: 0.762 | D21: 4.372 | E21: 14.447 | F21: 14.87
B22: 1981-05-01 | C22: 0.524 | D22: 4.918 | E22: 13.46 | F22: 14.779
B23: 1981-06-01 | C23: 0.174 | D23: 5.1 | E23: 12.33 | F23: 14.597
B24: 1981-07-01 | C24: 0.693 | D24: 5.829 | E24: 12.018 | F24: 14.389
B25: 1981-08-01 | C25: 0.688 | D25: 6.557 | E25: 11.146 | F25: 14.079
B26: 1981-09-01 | C26: 0.798 | D26: 7.407 | E26: 11.328 | F26: 13.785
B27: 1981-10-01 | C27: 0.226 | D27: 7.65 | E27: 9.647 | F27: 13.303
B28: 1981-11-01 | C28: 0.564 | D28: 8.257 | E28: 9.387 | F28: 12.803
B29: 1981-12-01 | C29: 0.28 | D29: 8.561 | E29: 8.561 | F29: 12.185
B30: 1982-01-01 | C30: 0.839 | D30: 0.839 | E30: 7.449 | F30: 11.502
B31: 1982-02-01 | C31: 0.388 | D31: 1.23 | E31: 7.101 | F31: 10.856
B32: 1982-03-01 | C32: 0.387 | D32: 1.622 | E32: 6.506 | F32: 10.183
B33: 1982-04-01 | C33: 0.275 | D33: 1.902 | E33: 5.992 | F33: 9.484
B34: 1982-05-01 | C34: 0.494 | D34: 2.405 | E34: 5.961 | F34: 8.867
B35: 1982-06-01 | C35: 0.71 | D35: 3.132 | E35: 6.528 | F35: 8.395
B36: 1982-07-01 | C36: 0.759 | D36: 3.915 | E36: 6.598 | F36: 7.957
B37: 1982-08-01 | C37: 0.323 | D37: 4.251 | E37: 6.211 | F37: 7.557
B38: 1982-09-01 | C38: 0.322 | D38: 4.586 | E38: 5.709 | F38: 7.103
B39: 1982-10-01 | C39: 0.107 | D39: 4.698 | E39: 5.584 | F39: 6.772
B40: 1982-11-01 | C40: 0.1 | D40: 4.803 | E40: 5.097 | F40: 6.423
B41: 1982-12-01 | C41: -0.1 | D41: 4.698 | E41: 4.698 | F41: 6.106
B42: 1983-01-01 | C42: 0.2 | D42: 0.2 | E42: 4.035 | F42: 5.821
B43: 1983-02-01 | C43: 0 | D43: 0.2 | E43: 3.632 | F43: 5.53
B44: 1983-03-01 | C44: 0.299 | D44: 0.5 | E44: 3.542 | F44: 5.282
B45: 1983-04-01 | C45: 0.1 | D45: 0.6 | E45: 3.361 | F45: 5.06
B46: 1983-05-01 | C46: 0.398 | D46: 1 | E46: 3.262 | F46: 4.834
B47: 1983-06-01 | C47: 0.297 | D47: 1.3 | E47: 2.838 | F47: 4.527
B48: 1983-07-01 | C48: 0.494 | D48: 1.8 | E48: 2.567 | F48: 4.192
B49: 1983-08-01 | C49: 0.098 | D49: 1.9 | E49: 2.337 | F49: 3.87
B50: 1983-09-01 | C50: 0.098 | D50: 2 | E50: 2.109 | F50: 3.571
B51: 1983-10-01 | C51: 0 | D51: 2 | E51: 2 | F51: 3.275
B52: 1983-11-01 | C52: 0.098 | D52: 2.1 | E52: 1.998 | F52: 3.019
B53: 1983-12-01 | C53: 0.098 | D53: 2.2 | E53: 2.2 | F53: 2.814
B54: 1984-01-01 | C54: 0.294 | D54: 0.294 | E54: 2.295 | F54: 2.671
B55: 1984-02-01 | C55: 0.195 | D55: 0.489 | E55: 2.495 | F55: 2.578
B56: 1984-03-01 | C56: 0.195 | D56: 0.685 | E56: 2.388 | F56: 2.484
B57: 1984-04-01 | C57: 0.292 | D57: 0.978 | E57: 2.584 | F57: 2.421
B58: 1984-05-01 | C58: 0.097 | D58: 1.076 | E58: 2.277 | F58: 2.34
B59: 1984-06-01 | C59: 0.29 | D59: 1.37 | E59: 2.27 | F59: 2.294
B60: 1984-07-01 | C60: 0.097 | D60: 1.468 | E60: 1.866 | F60: 2.235
B61: 1984-08-01 | C61: 0.096 | D61: 1.566 | E61: 1.865 | F61: 2.195
B62: 1984-09-01 | C62: 0.193 | D62: 1.761 | E62: 1.961 | F62: 2.183
B63: 1984-10-01 | C63: 0 | D63: 1.761 | E63: 1.961 | F63: 2.179
B64: 1984-11-01 | C64: -0.096 | D64: 1.663 | E64: 1.763 | F64: 2.159
B65: 1984-12-01 | C65: 0.096 | D65: 1.761 | E65: 1.761 | F65: 2.122
B66: 1985-01-01 | C66: 2 | D66: 2 | E66: 3.493 | F66: 2.223
B67: 1985-02-01 | C67: 0.294 | D67: 2.3 | E67: 3.595 | F67: 2.316
B68: 1985-03-01 | C68: 0 | D68: 2.3 | E68: 3.394 | F68: 2.401
B69: 1985-04-01 | C69: 1.173 | D69: 3.5 | E69: 4.302 | F69: 2.546
B70: 1985-05-01 | C70: 0 | D70: 3.5 | E70: 4.201 | F70: 2.707
B71: 1985-06-01 | C71: 0 | D71: 3.5 | E71: 3.9 | F71: 2.844
B72: 1985-07-01 | C72: 0.097 | D72: 3.6 | E72: 3.9 | F72: 3.013
B73: 1985-08-01 | C73: 0 | D73: 3.6 | E73: 3.8 | F73: 3.174
B74: 1985-09-01 | C74: -0.097 | D74: 3.5 | E74: 3.5 | F74: 3.302
B75: 1985-10-01 | C75: -0.193 | D75: 3.3 | E75: 3.3 | F75: 3.412
B76: 1985-11-01 | C76: 0 | D76: 3.3 | E76: 3.399 | F76: 3.547
B77: 1985-12-01 | C77: 0.29 | D77: 3.6 | E77: 3.6 | F77: 3.698
B78: 1986-01-01 | C78: -0.097 | D78: -0.097 | E78: 1.471 | F78: 3.526
B79: 1986-02-01 | C79: 0.097 | D79: 0 | E79: 1.271 | F79: 3.328
B80: 1986-03-01 | C80: 0 | D80: 0 | E80: 1.271 | F80: 3.148
B81: 1986-04-01 | C81: 0.193 | D81: 0.193 | E81: 0.29 | F81: 2.808
B82: 1986-05-01 | C82: 0 | D82: 0.193 | E82: 0.29 | F82: 2.479
B83: 1986-06-01 | C83: 0.096 | D83: 0.29 | E83: 0.386 | F83: 2.185
B84: 1986-07-01 | C84: 0.289 | D84: 0.579 | E84: 0.579 | F84: 1.908
B85: 1986-08-01 | C85: 0.384 | D85: 0.965 | E85: 0.965 | F85: 1.674
B86: 1986-09-01 | C86: 0.382 | D86: 1.351 | E86: 1.449 | F86: 1.507
B87: 1986-10-01 | C87: 0.095 | D87: 1.448 | E87: 1.742 | F87: 1.381
B88: 1986-11-01 | C88: 0.095 | D88: 1.544 | E88: 1.839 | F88: 1.256
B89: 1986-12-01 | C89: 0.285 | D89: 1.834 | E89: 1.834 | F89: 1.115
B90: 1987-01-01 | C90: 1.043 | D90: 1.043 | E90: 2.995 | F90: 1.242
B91: 1987-02-01 | C91: 0.469 | D91: 1.517 | E91: 3.378 | F91: 1.418
B92: 1987-03-01 | C92: 0.28 | D92: 1.801 | E92: 3.668 | F92: 1.618
B93: 1987-04-01 | C93: 0.279 | D93: 2.085 | E93: 3.757 | F93: 1.908
B94: 1987-05-01 | C94: 0.186 | D94: 2.275 | E94: 3.95 | F94: 2.213
B95: 1987-06-01 | C95: 0.093 | D95: 2.37 | E95: 3.946 | F95: 2.51
B96: 1987-07-01 | C96: 0.278 | D96: 2.654 | E96: 3.935 | F96: 2.79
B97: 1987-08-01 | C97: 0.185 | D97: 2.844 | E97: 3.728 | F97: 3.021
B98: 1987-09-01 | C98: 0.276 | D98: 3.128 | E98: 3.619 | F98: 3.202
B99: 1987-10-01 | C99: 0 | D99: 3.128 | E99: 3.52 | F99: 3.349
B100: 1987-11-01 | C100: 0.184 | D100: 3.318 | E100: 3.612 | F100: 3.496
B101: 1987-12-01 | C101: 0.183 | D101: 3.507 | E101: 3.507 | F101: 3.635
B102: 1988-01-01 | C102: 0.549 | D102: 0.549 | E102: 3.002 | F102: 3.634
B103: 1988-02-01 | C103: 0.364 | D103: 0.916 | E103: 2.894 | F103: 3.592
B104: 1988-03-01 | C104: 0.272 | D104: 1.19 | E104: 2.886 | F104: 3.526
B105: 1988-04-01 | C105: 0 | D105: 1.19 | E105: 2.6 | F105: 3.428
B106: 1988-05-01 | C106: 0 | D106: 1.19 | E106: 2.41 | F106: 3.299
B107: 1988-06-01 | C107: 0.271 | D107: 1.465 | E107: 2.593 | F107: 3.186
B108: 1988-07-01 | C108: 0.361 | D108: 1.832 | E108: 2.678 | F108: 3.082
B109: 1988-08-01 | C109: 0.629 | D109: 2.473 | E109: 3.134 | F109: 3.034
B110: 1988-09-01 | C110: 0.626 | D110: 3.114 | E110: 3.493 | F110: 3.025
B111: 1988-10-01 | C111: 0.355 | D111: 3.48 | E111: 3.86 | F111: 3.055
B112: 1988-11-01 | C112: 0.265 | D112: 3.755 | E112: 3.945 | F112: 3.084
B113: 1988-12-01 | C113: 0.177 | D113: 3.938 | E113: 3.938 | F113: 3.122
B114: 1989-01-01 | C114: 0.529 | D114: 0.529 | E114: 3.916 | F114: 3.199
B115: 1989-02-01 | C115: 0.088 | D115: 0.617 | E115: 3.63 | F115: 3.26
B116: 1989-03-01 | C116: 0.35 | D116: 0.969 | E116: 3.71 | F116: 3.329
B117: 1989-04-01 | C117: 0.349 | D117: 1.322 | E117: 4.072 | F117: 3.452
B118: 1989-05-01 | C118: 0.696 | D118: 2.026 | E118: 4.796 | F118: 3.651
B119: 1989-06-01 | C119: 0 | D119: 2.026 | E119: 4.513 | F119: 3.81
B120: 1989-07-01 | C120: 0.173 | D120: 2.203 | E120: 4.317 | F120: 3.946
B121: 1989-08-01 | C121: 0.259 | D121: 2.467 | E121: 3.932 | F121: 4.012
B122: 1989-09-01 | C122: 0.172 | D122: 2.643 | E122: 3.464 | F122: 4.008
B123: 1989-10-01 | C123: 0.343 | D123: 2.996 | E123: 3.451 | F123: 3.972
B124: 1989-11-01 | C124: 0.599 | D124: 3.612 | E124: 3.795 | F124: 3.96
B125: 1989-12-01 | C125: 0.68 | D125: 4.317 | E125: 4.317 | F125: 3.992
B126: 1990-01-01 | C126: 0.676 | D126: 0.676 | E126: 4.47 | F126: 4.038
B127: 1990-02-01 | C127: 0.587 | D127: 1.267 | E127: 4.991 | F127: 4.153
B128: 1990-03-01 | C128: 0.417 | D128: 1.689 | E128: 5.061 | F128: 4.266
B129: 1990-04-01 | C129: 0.415 | D129: 2.111 | E129: 5.13 | F129: 4.355
B130: 1990-05-01 | C130: 0.414 | D130: 2.534 | E130: 4.836 | F130: 4.36
B131: 1990-06-01 | C131: 0.494 | D131: 3.041 | E131: 5.354 | F131: 4.432
B132: 1990-07-01 | C132: 0.328 | D132: 3.378 | E132: 5.517 | F132: 4.534
B133: 1990-08-01 | C133: 0.572 | D133: 3.97 | E133: 5.847 | F133: 4.694
B134: 1990-09-01 | C134: 0.812 | D134: 4.814 | E134: 6.524 | F134: 4.949
B135: 1990-10-01 | C135: 1.45 | D135: 6.334 | E135: 7.699 | F135: 5.304
B136: 1990-11-01 | C136: 0.318 | D136: 6.672 | E136: 7.398 | F136: 5.605
B137: 1990-12-01 | C137: 0.396 | D137: 7.095 | E137: 7.095 | F137: 5.837
B138: 1991-01-01 | C138: 0.315 | D138: 0.315 | E138: 6.711 | F138: 6.023
B139: 1991-02-01 | C139: 0.393 | D139: 0.71 | E139: 6.505 | F139: 6.148
B140: 1991-03-01 | C140: 0.313 | D140: 1.025 | E140: 6.395 | F140: 6.258
B141: 1991-04-01 | C141: 0.312 | D141: 1.341 | E141: 6.286 | F141: 6.352
B142: 1991-05-01 | C142: 0.156 | D142: 1.498 | E142: 6.013 | F142: 6.447
B143: 1991-06-01 | C143: 0.544 | D143: 2.05 | E143: 6.066 | F143: 6.503
B144: 1991-07-01 | C144: 0.464 | D144: 2.524 | E144: 6.209 | F144: 6.558
B145: 1991-08-01 | C145: 0.154 | D145: 2.681 | E145: 5.768 | F145: 6.548
B146: 1991-09-01 | C146: 0.307 | D146: 2.997 | E146: 5.238 | F146: 6.437
B147: 1991-10-01 | C147: 0.306 | D147: 3.312 | E147: 4.051 | F147: 6.129
B148: 1991-11-01 | C148: 0.229 | D148: 3.549 | E148: 3.959 | F148: 5.84
B149: 1991-12-01 | C149: 0.152 | D149: 3.707 | E149: 3.707 | F149: 5.556
B150: 1992-01-01 | C150: 0.076 | D150: 0.076 | E150: 3.459 | F150: 5.282
B151: 1992-02-01 | C151: 0.608 | D151: 0.684 | E151: 3.681 | F151: 5.046
B152: 1992-03-01 | C152: 0.227 | D152: 0.913 | E152: 3.591 | F152: 4.813
B153: 1992-04-01 | C153: 0.603 | D153: 1.521 | E153: 3.891 | F153: 4.616
B154: 1992-05-01 | C154: 0.375 | D154: 1.901 | E154: 4.118 | F154: 4.461
B155: 1992-06-01 | C155: 0.299 | D155: 2.205 | E155: 3.864 | F155: 4.281
B156: 1992-07-01 | C156: 0.074 | D156: 2.281 | E156: 3.462 | F156: 4.057
B157: 1992-08-01 | C157: 0.372 | D157: 2.662 | E157: 3.687 | F157: 3.888
B158: 1992-09-01 | C158: 0.519 | D158: 3.194 | E158: 3.905 | F158: 3.781
B159: 1992-10-01 | C159: 0.442 | D159: 3.65 | E159: 4.046 | F159: 3.781
B160: 1992-11-01 | C160: 0.44 | D160: 4.106 | E160: 4.265 | F160: 3.808
B161: 1992-12-01 | C161: 0.365 | D161: 4.487 | E161: 4.487 | F161: 3.873
B162: 1993-01-01 | C162: 0.364 | D162: 0.364 | E162: 4.787 | F162: 3.984
B163: 1993-02-01 | C163: 0.508 | D163: 0.873 | E163: 4.683 | F163: 4.068
B164: 1993-03-01 | C164: 0.216 | D164: 1.092 | E164: 4.672 | F164: 4.158
B165: 1993-04-01 | C165: 0.144 | D165: 1.237 | E165: 4.195 | F165: 4.183
B166: 1993-05-01 | C166: 0.144 | D166: 1.383 | E166: 3.955 | F166: 4.169
B167: 1993-06-01 | C167: 1.005 | D167: 2.402 | E167: 4.688 | F167: 4.238
B168: 1993-07-01 | C168: 0.64 | D168: 3.057 | E168: 5.279 | F168: 4.39
B169: 1993-08-01 | C169: 0.847 | D169: 3.93 | E169: 5.778 | F169: 4.565
B170: 1993-09-01 | C170: 0.63 | D170: 4.585 | E170: 5.895 | F170: 4.732
B171: 1993-10-01 | C171: 0.487 | D171: 5.095 | E171: 5.943 | F171: 4.891
B172: 1993-11-01 | C172: 0.693 | D172: 5.822 | E172: 6.209 | F172: 5.054
B173: 1993-12-01 | C173: 0.55 | D173: 6.405 | E173: 6.405 | F173: 5.216
B174: 1994-01-01 | C174: 0.479 | D174: 0.479 | E174: 6.526 | F174: 5.362
B175: 1994-02-01 | C175: 0.408 | D175: 0.889 | E175: 6.421 | F175: 5.507
B176: 1994-03-01 | C176: 0.678 | D176: 1.573 | E176: 6.911 | F176: 5.695
B177: 1994-04-01 | C177: 0.606 | D177: 2.189 | E177: 7.405 | F177: 5.962
B178: 1994-05-01 | C178: 0.268 | D178: 2.462 | E178: 7.538 | F178: 6.259
B179: 1994-06-01 | C179: 0.2 | D179: 2.668 | E179: 6.681 | F179: 6.423
B180: 1994-07-01 | C180: 0.666 | D180: 3.352 | E180: 6.709 | F180: 6.54
B181: 1994-08-01 | C181: 0.502 | D181: 3.871 | E181: 6.344 | F181: 6.585
B182: 1994-09-01 | C182: 0.295 | D182: 4.177 | E182: 5.99 | F182: 6.59
B183: 1994-10-01 | C183: -0.028 | D183: 4.149 | E183: 5.447 | F183: 6.544
B184: 1994-11-01 | C184: 0.191 | D184: 4.348 | E184: 4.922 | F184: 6.432
B185: 1994-12-01 | C185: 0.311 | D185: 4.672 | E185: 4.672 | F185: 6.283
B186: 1995-01-01 | C186: 0.222 | D186: 0.222 | E186: 4.405 | F186: 6.101
B187: 1995-02-01 | C187: 0.116 | D187: 0.339 | E187: 4.101 | F187: 5.904
B188: 1995-03-01 | C188: 0.487 | D188: 0.827 | E188: 3.904 | F188: 5.651
B189: 1995-04-01 | C189: 0 | D189: 0.827 | E189: 3.278 | F189: 5.306
B190: 1995-05-01 | C190: 0.317 | D190: 1.147 | E190: 3.329 | F190: 4.958
B191: 1995-06-01 | C191: 0.611 | D191: 1.766 | E191: 3.753 | F191: 4.717
B192: 1995-07-01 | C192: 0 | D192: 1.766 | E192: 3.066 | F192: 4.416
B193: 1995-08-01 | C193: 0.232 | D193: 2.002 | E193: 2.789 | F193: 4.122
B194: 1995-09-01 | C194: 0.289 | D194: 2.297 | E194: 2.783 | F194: 3.857
B195: 1995-10-01 | C195: 0.427 | D195: 2.734 | E195: 3.25 | F195: 3.677
B196: 1995-11-01 | C196: 0.204 | D196: 2.943 | E196: 3.263 | F196: 3.542
B197: 1995-12-01 | C197: 0.173 | D197: 3.121 | E197: 3.121 | F197: 3.414
B198: 1996-01-01 | C198: 0.315 | D198: 0.315 | E198: 3.217 | F198: 3.317
B199: 1996-02-01 | C199: 0.199 | D199: 0.515 | E199: 3.302 | F199: 3.253
B200: 1996-03-01 | C200: 0.222 | D200: 0.738 | E200: 3.029 | F200: 3.181
B201: 1996-04-01 | C201: 0.434 | D201: 1.175 | E201: 3.476 | F201: 3.198
... 348 more rows

Sheet 2007-2023
B2: Subsistence level in Aruba (in Afl.) by family size and composition,(Base period Oct. 2010)
C3: Equivalence scales
C4: 1 | D4: 1.3 | E4: 1.5 | F4: 1.8 | G4: 2.1
C5: 1 adult | D5: 1 adult | E5: 2 adults | F5: 2 adults | G5: 2 adults
B6: Period | D6: + 1 child | F6: + 1 child | G6: + 2 children
B9: 2007-01-01 | C9: 1675 | D9: 2178 | E9: 2513 | F9: 3015 | G9: 3518
B10: 2007-02-01 | C10: 1676 | D10: 2179 | E10: 2514 | F10: 3017 | G10: 3519
B11: 2007-03-01 | C11: 1687 | D11: 2193 | E11: 2530 | F11: 3036 | G11: 3542
B12: 2007-04-01 | C12: 1691 | D12: 2198 | E12: 2536 | F12: 3043 | G12: 3550
B13: 2007-05-01 | C13: 1714 | D13: 2229 | E13: 2571 | F13: 3086 | G13: 3600
B14: 2007-06-01 | C14: 1761 | D14: 2289 | E14: 2641 | F14: 3169 | G14: 3697
B15: 2007-07-01 | C15: 1768 | D15: 2299 | E15: 2652 | F15: 3183 | G15: 3713
B16: 2007-08-01 | C16: 1789 | D16: 2326 | E16: 2684 | F16: 3221 | G16: 3758
B17: 2007-09-01 | C17: 1783 | D17: 2318 | E17: 2675 | F17: 3210 | G17: 3745
B18: 2007-10-01 | C18: 1796 | D18: 2335 | E18: 2694 | F18: 3232 | G18: 3771
B19: 2007-11-01 | C19: 1830 | D19: 2379 | E19: 2744 | F19: 3293 | G19: 3842
B20: 2007-12-01 | C20: 1852 | D20: 2408 | E20: 2779 | F20: 3334 | G20: 3890
B22: Average 2007 | C22: =AVERAGE(C9:C20) -> 1751.833333 | D22: =AVERAGE(D9:D20) -> 2277.583333 | E22: =AVERAGE(E9:E20) -> 2627.75 | F22: =AVERAGE(F9:F20) -> 3153.25 | G22: =AVERAGE(G9:G20) -> 3678.75
B24: 2008-01-02 | C24: 1879 | D24: 2443 | E24: 2818 | F24: 3382 | G24: 3946
B25: 2008-02-08 | C25: 1888 | D25: 2455 | E25: 2833 | F25: 3399 | G25: 3966
B26: 2008-03-08 | C26: 1901 | D26: 2472 | E26: 2852 | F26: 3422 | G26: 3993
B27: 2008-04-08 | C27: 1912 | D27: 2486 | E27: 2868 | F27: 3442 | G27: 4015
B28: 2008-05-01 | C28: 1926 | D28: 2504 | E28: 2889 | F28: 3467 | G28: 4044
B29: 2008-06-01 | C29: 1962 | D29: 2551 | E29: 2943 | F29: 3532 | G29: 4121
B30: 2008-07-01 | C30: 2005 | D30: 2606 | E30: 3007 | F30: 3609 | G30: 4210
B31: 2008-08-01 | C31: 2062 | D31: 2680 | E31: 3092 | F31: 3711 | G31: 4329
B32: 2008-09-01 | C32: 2053 | D32: 2669 | E32: 3080 | F32: 3696 | G32: 4312
B33: 2008-10-01 | C33: 2026 | D33: 2634 | E33: 3040 | F33: 3648 | G33: 4255
B34: 2008-11-01 | C34: 1951 | D34: 2536 | E34: 2926 | F34: 3512 | G34: 4097
B35: 2008-12-01 | C35: 1870 | D35: 2430 | E35: 2804 | F35: 3365 | G35: 3926
B37: Average 2008 | C37: =AVERAGE(C24:C35) -> 1952.916667 | D37: =AVERAGE(D24:D35) -> 2538.833333 | E37: =AVERAGE(E24:E35) -> 2929.333333 | F37: =AVERAGE(F24:F35) -> 3515.416667 | G37: =AVERAGE(G24:G35) -> 4101.166667
B39: 2009-01-01 | C39: 1871 | D39: 2433 | E39: 2807 | F39: 3369 | G39: 3930
B40: 2009-02-01 | C40: 1881 | D40: 2445 | E40: 2821 | F40: 3385 | G40: 3949
B41: 2009-03-01 | C41: 1894 | D41: 2462 | E41: 2841 | F41: 3409 | G41: 3977
B42: 2009-04-01 | C42: 1898 | D42: 2468 | E42: 2847 | F42: 3417 | G42: 3986
B43: 2009-05-01 | C43: 1908 | D43: 2480 | E43: 2861 | F43: 3434 | G43: 4006
B44: 2009-06-01 | C44: 1956 | D44: 2543 | E44: 2934 | F44: 3521 | G44: 4108
B45: 2009-07-01 | C45: 1998 | D45: 2597 | E45: 2997 | F45: 3596 | G45: 4195
B46: 2009-08-01 | C46: 1994 | D46: 2592 | E46: 2991 | F46: 3589 | G46: 4187
B47: 2009-09-01 | C47: 1997 | D47: 2596 | E47: 2995 | F47: 3594 | G47: 4193
B48: 2009-10-01 | C48: 1995 | D48: 2594 | E48: 2993 | F48: 3591 | G48: 4190
B49: 2009-11-01 | C49: 1990 | D49: 2587 | E49: 2985 | F49: 3582 | G49: 4179
B50: 2009-12-01 | C50: 1996 | D50: 2595 | E50: 2994 | F50: 3593 | G50: 4192
B52: Average 2009 | C52: =AVERAGE(C39:C50) -> 1948.166667 | D52: =AVERAGE(D39:D50) -> 2532.666667 | E52: =AVERAGE(E39:E50) -> 2922.166667 | F52: =AVERAGE(F39:F50) -> 3506.666667 | G52: =AVERAGE(G39:G50) -> 4091
B54: 2010-01-01 | C54: 1981 | D54: 2575 | E54: 2971 | F54: 3566 | G54: 4160
B55: 2010-02-01 | C55: 1981 | D55: 2575 | E55: 2971 | F55: 3565 | G55: 4160
B56: 2010-03-01 | C56: 1993 | D56: 2590 | E56: 2989 | F56: 3587 | G56: 4184
B57: 2010-04-01 | C57: 2000 | D57: 2600 | E57: 3000 | F57: 3600 | G57: 4200
B58: 2010-05-01 | C58: 2000 | D58: 2600 | E58: 3000 | F58: 3600 | G58: 4200
B59: 2010-06-01 | C59: 1995 | D59: 2594 | E59: 2993 | F59: 3592 | G59: 4190
B60: 2010-07-01 | C60: 1996 | D60: 2595 | E60: 2995 | F60: 3594 | G60: 4192
B61: 2010-08-01 | C61: 1998 | D61: 2598 | E61: 2997 | F61: 3597 | G61: 4196
B62: 2010-09-01 | C62: 1999 | D62: 2599 | E62: 2998 | F62: 3598 | G62: 4198
B63: 2010-10-01 | C63: 1985 | D63: 2581 | E63: 2978 | F63: 3573 | G63: 4169
B64: 2010-11-01 | C64: 1996 | D64: 2595 | E64: 2994 | F64: 3593 | G64: 4192
B65: 2010-12-01 | C65: 2001 | D65: 2601 | E65: 3001 | F65: 3601 | G65: 4201
B67: Average 2010 | C67: =AVERAGE(C54:C65) -> 1993.75 | D67: =AVERAGE(D54:D65) -> 2591.916667 | E67: =AVERAGE(E54:E65) -> 2990.583333 | F67: =AVERAGE(F54:F65) -> 3588.833333 | G67: =AVERAGE(G54:G65) -> 4186.833333
B69: 2011-01-01 | C69: 2007 | D69: 2609 | E69: 3011 | F69: 3613 | G69: 4215
B70: 2011-02-01 | C70: 2016 | D70: 2621 | E70: 3024 | F70: 3629 | G70: 4234
B71: 2011-03-01 | C71: 2030 | D71: 2639 | E71: 3045 | F71: 3654 | G71: 4263
B72: 2011-04-01 | C72: 2083 | D72: 2707 | E72: 3124 | F72: 3749 | G72: 4373
B73: 2011-05-01 | C73: 2096 | D73: 2725 | E73: 3144 | F73: 3773 | G73: 4402
B74: 2011-06-01 | C74: 2102 | D74: 2732 | E74: 3152 | F74: 3783 | G74: 4413
B75: 2011-07-01 | C75: 2107 | D75: 2739 | E75: 3161 | F75: 3793 | G75: 4425
B76: 2011-08-01 | C76: 2144 | D76: 2787 | E76: 3216 | F76: 3860 | G76: 4503
B77: 2011-09-01 | C77: 2147 | D77: 2791 | E77: 3220 | F77: 3864 | G77: 4508
B78: 2011-10-01 | C78: 2146 | D78: 2789 | E78: 3219 | F78: 3862 | G78: 4506
B79: 2011-11-01 | C79: 2153 | D79: 2799 | E79: 3230 | F79: 3876 | G79: 4522
B80: 2011-12-01 | C80: 2153 | D80: 2799 | E80: 3230 | F80: 3876 | G80: 4521
B82: Average 2011 | C82: =AVERAGE(C69:C80) -> 2098.666667 | D82: =AVERAGE(D69:D80) -> 2728.083333 | E82: =AVERAGE(E69:E80) -> 3148 | F82: =AVERAGE(F69:F80) -> 3777.666667 | G82: =AVERAGE(G69:G80) -> 4407.083333
B84: 2012-01-01 | C84: 2157 | D84: 2804 | E84: 3236 | F84: 3883 | G84: 4530
B85: 2012-02-01 | C85: 2164 | D85: 2814 | E85: 3246 | F85: 3896 | G85: 4545
B86: 2012-03-01 | C86: 2161 | D86: 2810 | E86: 3242 | F86: 3890 | G86: 4539
B87: 2012-04-01 | C87: 2163 | D87: 2812 | E87: 3245 | F87: 3894 | G87: 4543
B88: 2012-05-01 | C88: 2165 | D88: 2815 | E88: 3248 | F88: 3897 | G88: 4547
B89: 2012-06-01 | C89: 2163 | D89: 2812 | E89: 3244 | F89: 3893 | G89: 4542
B90: 2012-07-01 | C90: 2161 | D90: 2809 | E90: 3242 | F90: 3890 | G90: 4538
B91: 2012-08-01 | C91: 2115 | D91: 2749 | E91: 3172 | F91: 3806 | G91: 4441
B92: 2012-09-01 | C92: 2118 | D92: 2754 | E92: 3177 | F92: 3813 | G92: 4448
B93: 2012-10-01 | C93: 2118 | D93: 2753 | E93: 3176 | F93: 3812 | G93: 4447
B94: 2012-11-01 | C94: 2074 | D94: 2696 | E94: 3111 | F94: 3734 | G94: 4356
B95: 2012-12-01 | C95: 2073 | D95: 2695 | E95: 3110 | F95: 3731 | G95: 4353
B97: Average 2012 | C97: =AVERAGE(C84:C95) -> 2136 | D97: =AVERAGE(D84:D95) -> 2776.916667 | E97: =AVERAGE(E84:E95) -> 3204.083333 | F97: =AVERAGE(F84:F95) -> 3844.916667 | G97: =AVERAGE(G84:G95) -> 4485.75
B99: 2013-01-01 | C99: 2074 | D99: 2696 | E99: 3111 | F99: 3733 | G99: 4355
B100: 2013-02-01 | C100: 2087 | D100: 2713 | E100: 3131 | F100: 3757 | G100: 4383
B101: 2013-03-01 | C101: 2088 | D101: 2715 | E101: 3133 | F101: 3759 | G101: 4386
B102: 2013-04-01 | C102: 2089 | D102: 2715 | E102: 3133 | F102: 3760 | G102: 4386
B103: 2013-05-01 | C103: 2084 | D103: 2709 | E103: 3126 | F103: 3752 | G103: 4377
B104: 2013-06-01 | C104: 2088 | D104: 2714 | E104: 3131 | F104: 3758 | G104: 4384
B105: 2013-07-01 | C105: 2082 | D105: 2706 | E105: 3123 | F105: 3747 | G105: 4372
B106: 2013-08-01 | C106: 2084 | D106: 2710 | E106: 3127 | F106: 3752 | G106: 4377
B107: 2013-09-01 | C107: 2084 | D107: 2709 | E107: 3126 | F107: 3751 | G107: 4376
B108: 2013-10-01 | C108: 2081 | D108: 2705 | E108: 3121 | F108: 3745 | G108: 4369
B109: 2013-11-01 | C109: 2079 | D109: 2703 | E109: 3119 | F109: 3743 | G109: 4367
B110: 2013-12-01 | C110: 2084 | D110: 2709 | E110: 3126 | F110: 3751 | G110: 4376
B112: Average 2013 | C112: =AVERAGE(C99:C110) -> 2083.666667 | D112: =AVERAGE(D99:D110) -> 2708.666667 | E112: =AVERAGE(E99:E110) -> 3125.583333 | F112: =AVERAGE(F99:F110) -> 3750.666667 | G112: =AVERAGE(G99:G110) -> 4375.666667
B114: 2014-01-01 | C114: 2087 | D114: 2713 | E114: 3130 | F114: 3756 | G114: 4382
B115: 2014-02-01 | C115: 2092 | D115: 2720 | E115: 3139 | F115: 3766 | G115: 4394
B116: 2014-03-01 | C116: 2095 | D116: 2724 | E116: 3143 | F116: 3771 | G116: 4400
B117: 2014-04-01 | C117: 2098 | D117: 2727 | E117: 3147 | F117: 3776 | G117: 4406
B118: 2014-05-01 | C118: 2103 | D118: 2734 | E118: 3154 | F118: 3785 | G118: 4416
B119: 2014-06-01 | C119: 2111 | D119: 2745 | E119: 3167 | F119: 3800 | G119: 4434
B120: 2014-07-01 | C120: 2107 | D120: 2738 | E120: 3160 | F120: 3792 | G120: 4424
B121: 2014-08-01 | C121: 2114 | D121: 2748 | E121: 3171 | F121: 3805 | G121: 4439
B122: 2014-09-01 | C122: 2120 | D122: 2756 | E122: 3181 | F122: 3817 | G122: 4453
B123: 2014-10-01 | C123: 2148 | D123: 2793 | E123: 3222 | F123: 3867 | G123: 4511
B124: 2014-11-01 | C124: 2151 | D124: 2796 | E124: 3226 | F124: 3871 | G124: 4516
B125: 2014-12-01 | C125: 2173 | D125: 2825 | E125: 3259 | F125: 3911 | G125: 4563
B127: Average 2014 | C127: =AVERAGE(C114:C125) -> 2116.583333 | D127: =AVERAGE(D114:D125) -> 2751.583333 | E127: =AVERAGE(E114:E125) -> 3174.916667 | F127: =AVERAGE(F114:F125) -> 3809.75 | G127: =AVERAGE(G114:G125) -> 4444.833333
B129: 2015-01-01 | C129: 2162 | D129: 2810 | E129: 3243 | F129: 3891 | G129: 4540
B130: 2015-02-01 | C130: 2153 | D130: 2800 | E130: 3230 | F130: 3876 | G130: 4522
B131: 2015-03-01 | C131: 2159 | D131: 2807 | E131: 3239 | F131: 3886 | G131: 4534
B132: 2015-04-01 | C132: 2158 | D132: 2805 | E132: 3237 | F132: 3884 | G132: 4532
B133: 2015-05-01 | C133: 2157 | D133: 2804 | E133: 3235 | F133: 3882 | G133: 4529
B134: 2015-06-01 | C134: 2148 | D134: 2793 | E134: 3222 | F134: 3867 | G134: 4511
B135: 2015-07-01 | C135: 2163 | D135: 2812 | E135: 3245 | F135: 3893 | G135: 4542
B136: 2015-08-01 | C136: 2160 | D136: 2809 | E136: 3241 | F136: 3889 | G136: 4537
B137: 2015-09-01 | C137: 2160 | D137: 2808 | E137: 3241 | F137: 3889 | G137: 4537
B138: 2015-10-01 | C138: 2157 | D138: 2804 | E138: 3235 | F138: 3882 | G138: 4529
B139: 2015-11-01 | C139: 2158 | D139: 2806 | E139: 3237 | F139: 3885 | G139: 4532
B140: 2015-12-01 | C140: 2171 | D140: 2822 | E140: 3256 | F140: 3907 | G140: 4558
B142: Average 2015 | C142: =AVERAGE(C129:C140) -> 2158.833333 | D142: =AVERAGE(D129:D140) -> 2806.666667 | E142: =AVERAGE(E129:E140) -> 3238.416667 | F142: =AVERAGE(F129:F140) -> 3885.916667 | G142: =AVERAGE(G129:G140) -> 4533.583333
B144: 2016-01-01 | C144: 2150 | D144: 2795 | E144: 3225 | F144: 3870 | G144: 4516
B145: 2016-02-01 | C145: 2141 | D145: 2783 | E145: 3211 | F145: 3854 | G145: 4496
B146: 2016-03-01 | C146: 2128 | D146: 2767 | E146: 3193 | F146: 3831 | G146: 4470
B147: 2016-04-01 | C147: 2127 | D147: 2765 | E147: 3190 | F147: 3828 | G147: 4466
B148: 2016-05-01 | C148: 2134 | D148: 2775 | E148: 3201 | F148: 3842 | G148: 4482
B149: 2016-06-01 | C149: 2139 | D149: 2781 | E149: 3209 | F149: 3851 | G149: 4493
B150: 2016-07-01 | C150: 2139 | D150: 2781 | E150: 3208 | F150: 3850 | G150: 4492
B151: 2016-08-01 | C151: 2130 | D151: 2769 | E151: 3195 | F151: 3834 | G151: 4473
B152: 2016-09-01 | C152: 2133 | D152: 2773 | E152: 3199 | F152: 3839 | G152: 4479
B153: 2016-10-01 | C153: 2142 | D153: 2785 | E153: 3214 | F153: 3856 | G153: 4499
B154: 2016-11-01 | C154: 2144 | D154: 2788 | E154: 3216 | F154: 3860 | G154: 4503
B155: 2016-12-01 | C155: 2134 | D155: 2775 | E155: 3202 | F155: 3842 | G155: 4482
B157: Average 2016 | C157: =AVERAGE(C144:C155) -> 2136.75 | D157: =AVERAGE(D144:D155) -> 2778.083333 | E157: =AVERAGE(E144:E155) -> 3205.25 | F157: =AVERAGE(F144:F155) -> 3846.416667 | G157: =AVERAGE(G144:G155) -> 4487.583333
B159: 2017-01-01 | C159: 2091 | D159: 2718 | E159: 3136 | F159: 3764 | G159: 4391
B160: 2017-02-01 | C160: 2087 | D160: 2714 | E160: 3131 | F160: 3757 | G160: 4384
B161: 2017-03-01 | C161: 2094 | D161: 2722 | E161: 3141 | F161: 3769 | G161: 4397
B162: 2017-04-01 | C162: 2097 | D162: 2727 | E162: 3146 | F162: 3775 | G162: 4404
B163: 2017-05-01 | C163: 2100 | D163: 2729 | E163: 3149 | F163: 3779 | G163: 4409
B164: 2017-06-01 | C164: 2096 | D164: 2724 | E164: 3143 | F164: 3772 | G164: 4401
B165: 2017-07-01 | C165: 2095 | D165: 2724 | E165: 3143 | F165: 3771 | G165: 4400
B166: 2017-08-01 | C166: 2092 | D166: 2720 | E166: 3138 | F166: 3766 | G166: 4394
B167: 2017-09-01 | C167: 2097 | D167: 2726 | E167: 3146 | F167: 3775 | G167: 4404
B168: 2017-10-01 | C168: 2109 | D168: 2742 | E168: 3164 | F168: 3797 | G168: 4429
B169: 2017-11-01 | C169: 2105 | D169: 2736 | E169: 3157 | F169: 3788 | G169: 4420
B170: 2017-12-01 | C170: 2100 | D170: 2730 | E170: 3149 | F170: 3779 | G170: 4409
B172: Average 2017 | C172: =AVERAGE(C159:C170) -> 2096.916667 | D172: =AVERAGE(D159:D170) -> 2726 | E172: =AVERAGE(E159:E170) -> 3145.25 | F172: =AVERAGE(F159:F170) -> 3774.333333 | G172: =AVERAGE(G159:G170) -> 4403.5
B174: 2018-01-01 | C174: 2114 | D174: 2748 | E174: 3171 | F174: 3805 | G174: 4439
B175: 2018-02-01 | C175: 2153 | D175: 2799 | E175: 3229 | F175: 3875 | G175: 4521
B176: 2018-03-01 | C176: 2152 | D176: 2798 | E176: 3228 | F176: 3874 | G176: 4519
B177: 2018-04-01 | C177: 2164 | D177: 2813 | E177: 3246 | F177: 3895 | G177: 4544
B178: 2018-05-01 | C178: 2170 | D178: 2821 | E178: 3255 | F178: 3906 | G178: 4557
B179: 2018-06-01 | C179: 2173 | D179: 2825 | E179: 3259 | F179: 3911 | G179: 4563
B180: 2018-07-01 | C180: 2197 | D180: 2857 | E180: 3296 | F180: 3955 | G180: 4615
B181: 2018-08-01 | C181: 2199 | D181: 2859 | E181: 3299 | F181: 3959 | G181: 4619
B182: 2018-09-01 | C182: 2203 | D182: 2864 | E182: 3305 | F182: 3966 | G182: 4626
B183: 2018-10-01 | C183: 2208 | D183: 2871 | E183: 3313 | F183: 3975 | G183: 4638
B184: 2018-11-01 | C184: 2222 | D184: 2889 | E184: 3333 | F184: 4000 | G184: 4667
B185: 2018-12-01 | C185: 2232 | D185: 2902 | E185: 3349 | F185: 4018 | G185: 4688
B187: Average 2018 | C187: =AVERAGE(C174:C185) -> 2182.25 | D187: =AVERAGE(D174:D185) -> 2837.166667 | E187: =AVERAGE(E174:E185) -> 3273.583333 | F187: =AVERAGE(F174:F185) -> 3928.25 | G187: =AVERAGE(G174:G185) -> 4583
B189: 2019-01-01 | C189: 2248 | D189: 2922 | E189: 3371 | F189: 4046 | G189: 4720
B190: 2019-02-01 | C190: 2255 | D190: 2931 | E190: 3382 | F190: 4059 | G190: 4735
B191: 2019-03-01 | C191: 2290 | D191: 2977 | E191: 3435 | F191: 4122 | G191: 4809
B192: 2019-04-01 | C192: 2298 | D192: 2987 | E192: 3447 | F192: 4136 | G192: 4825
B193: 2019-05-01 | C193: 2318 | D193: 3014 | E193: 3477 | F193: 4173 | G193: 4868
B194: 2019-06-01 | C194: 2339 | D194: 3040 | E194: 3508 | F194: 4209 | G194: 4911
B195: 2019-07-01 | C195: 2341 | D195: 3043 | E195: 3511 | F195: 4213 | G195: 4915
B196: 2019-08-01 | C196: 2340 | D196: 3042 | E196: 3510 | F196: 4212 | G196: 4914
B197: 2019-09-01 | C197: 2332 | D197: 3032 | E197: 3498 | F197: 4198 | G197: 4897
B198: 2019-10-01 | C198: 2332 | D198: 3032 | E198: 3499 | F198: 4198 | G198: 4898
B199: 2019-11-01 | C199: 2329 | D199: 3028 | E199: 3494 | F199: 4192 | G199: 4891
B200: 2019-12-01 | C200: 2331 | D200: 3030 | E200: 3496 | F200: 4196 | G200: 4895
B202: Average 2019 | C202: =AVERAGE(C189:C200) -> 2312.75 | D202: =AVERAGE(D189:D200) -> 3006.5 | E202: =AVERAGE(E189:E200) -> 3469 | F202: =AVERAGE(F189:F200) -> 4162.833333 | G202: =AVERAGE(G189:G200) -> 4856.5
B204: 2020-01-01 | C204: 2314 | D204: 3008 | E204: 3471 | F204: 4165 | G204: 4860
B205: 2020-02-01 | C205: 2303 | D205: 2994 | E205: 3454 | F205: 4145 | G205: 4836
B206: 2020-03-01 | C206: 2300 | D206: 2989 | E206: 3449 | F206: 4139 | G206: 4829
B207: 2020-04-01 | C207: 2296 | D207: 2984 | E207: 3444 | F207: 4132 | G207: 4821
B208: 2020-05-01 | C208: 2283 | D208: 2968 | E208: 3425 | F208: 4110 | G208: 4794
B209: 2020-06-01 | C209: 2277 | D209: 2960 | E209: 3416 | F209: 4099 | G209: 4782
B210: 2020-07-01 | C210: 2267 | D210: 2947 | E210: 3400 | F210: 4080 | G210: 4760
B211: 2020-08-01 | C211: 2276 | D211: 2959 | E211: 3415 | F211: 4098 | G211: 4781
B212: 2020-09-01 | C212: 2277 | D212: 2960 | E212: 3416 | F212: 4099 | G212: 4782
B213: 2020-10-01 | C213: 2273 | D213: 2955 | E213: 3410 | F213: 4092 | G213: 4773
B214: 2020-11-01 | C214: 2266 | D214: 2946 | E214: 3399 | F214: 4079 | G214: 4759
B215: 2020-12-01 | C215: 2265 | D215: 2945 | E215: 3398 | F215: 4077 | G215: 4757
B217: Average 2020 | C217: =AVERAGE(C204:C215) -> 2283.083333 | D217: =AVERAGE(D204:D215) -> 2967.916667 | E217: =AVERAGE(E204:E215) -> 3424.75 | F217: =AVERAGE(F204:F215) -> 4109.583333 | G217: =AVERAGE(G204:G215) -> 4794.5
B219: 2021-01-01 | C219: 2257 | D219: 2934 | E219: 3385 | F219: 4062 | G219: 4739
B220: 2021-02-01 | C220: 2258 | D220: 2936 | E220: 3387 | F220: 4065 | G220: 4742
B221: 2021-03-01 | C221: 2258 | D221: 2935 | E221: 3387 | F221: 4064 | G221: 4741
B222: 2021-04-01 | C222: 2262 | D222: 2940 | E222: 3393 | F222: 4071 | G222: 4750
B223: 2021-05-01 | C223: 2263 | D223: 2942 | E223: 3395 | F223: 4074 | G223: 4752
B224: 2021-06-01 | C224: 2271.204567 | D224: 2952.565937 | E224: 3406.80685 | F224: 4088.16822 | G224: 4769.529591
B225: 2021-07-01 | C225: 2293 | D225: 2980 | E225: 3439 | F225: 4127 | G225: 4815
B226: 2021-08-01 | C226: 2294 | D226: 2982 | E226: 3441 | F226: 4129 | G226: 4817
B227: 2021-09-01 | C227: 2304 | D227: 2995 | E227: 3456 | F227: 4148 | G227: 4839
B228: 2021-10-01 | C228: 2311 | D228: 3005 | E228: 3467 | F228: 4161 | G228: 4854
B229: 2021-11-01 | C229: 2331 | D229: 3031 | E229: 3497 | F229: 4196 | G229: 4896
B230: 2021-12-01 | C230: 2337 | D230: 3038 | E230: 3505 | F230: 4206 | G230: 4907
B232: Average 2021 | C232: =AVERAGE(C219:C230) -> 2286.600381 | D232: =AVERAGE(D219:D230) -> 2972.547161 | E232: =AVERAGE(E219:E230) -> 3429.900571 | F232: =AVERAGE(F219:F230) -> 4115.930685 | G232: =AVERAGE(G219:G230) -> 4801.794133
... 43 more rows
